Cogmind - Beta 14 @@@ ROGUE MODE // 2024.12.15 @ 00:09:33 Player: morimori Result: Destroyed by G-73 Enforcer with Heavy Laser Performance ------------- Evolutions (9) 4500 Regions Visited (34) 6800 Robots Destroyed (396) 1980 Value Destroyed (16791) 16791 Prototype IDs (290) 5800 Alien Tech Used (6) 1200 Bonus (28815) 28815 TOTAL SCORE: 65886 Bonus ------- High Alert Combat Kills 3936 Follower Combat Kills 1229 Network Hubs Disabled 200 Met Zhirov 300 Met Warlord at Base 500 MAIN.C Attacked Warlord 500 Warlord Defense Kills 120 Built Enhanced Grunts 300 Read Decrypted Archives 300 Used Core Reset Matrix 3000 Met Warlord at Research 2000 Scanned by Researcher 500 Destroyed MAIN.C Guards 500 Met MAIN.C 5000 Destroyed MAIN.C Shell 5000 Destroyed MAIN.C 10000 Met Warlord at Command 2000 Friendly Fire -6570 Cogmind --------- Core Integrity 0/1600 Matter 126/800 Energy 141/340 System Corruption 15% Temperature Cool (9) Movement Treading (250) Ox1 Location -1/Command Parts ------- > --- POWER (3) -------- Particle Reactor > --- PROPULSION (6) --- Advanced Heavy Siege Treads > --- UTILITY (15) ----- Experimental Power Amplifier Advanced Heat Sink Experimental Coolant Injector Huge Storage Unit Experimental Matter Compressor Experimental Core Analyzer Graphene Brace Beam Splitter > --- WEAPON (2) ------- Enhanced Nova Cannon Enhanced Nova Cannon > --- INVENTORY (25) --- Advanced Heat Sink Advanced Heat Sink Advanced Heat Sink Long-range Terrain Scanner Experimental Shock Absorption System Antimissile System Enhanced Nova Cannon Peak State ------------ > --- POWER ------------ Quantum Reactor Vortex Chain Reactor > --- PROPULSION ------- Biometal Heavy Treads Advanced Heavy Siege Treads Advanced Heavy Siege Treads > --- UTILITY ---------- Experimental Power Amplifier Experimental Power Amplifier Advanced Coolant Injector Huge Storage Unit Advanced Terrain Scan Processor Experimental Core Analyzer Precision Energy Filter Particle Accelerator Quantum Capacitor Graphene Brace Experimental Focal Shield Beam Splitter Experimental Hacking Suite Experimental Hacking Suite > --- WEAPON ----------- Core Cannon > --- INVENTORY -------- Particle Reactor Advanced Heavy Siege Treads Advanced Heavy Siege Treads Advanced Heavy Siege Treads Advanced Heat Sink Advanced Heat Sink Advanced Coolant Injector Experimental Matter Compressor Long-range Terrain Scanner Advanced Weapon Cycler Experimental Shock Absorption System Experimental EM Disruption Field Advanced Hardlight Generator Antimissile System Transdimensional Reconstructor Vortex Rail Enhanced Nova Cannon Core Cannon Omega Cannon Gamma Bomb Array [Rating: 245] Favorites ----------- Power Micro Fission Core Engine Cooled Ion Engine Power Core Micro Fission Core Reactor Vortex Chain Reactor Propulsion Wheel Treads Advanced Heavy Siege Treads Wheel Wheel Hover Unit Combat Antigrav System Utility Experimental Hacking Suite Device Seismic Detector Storage Huge Storage Unit Processor Advanced Terrain Scan Processor Hackware Experimental Hacking Suite Protection Experimental Utility Shielding Weapon Heavy Assault Rifle Energy Gun Vortex Rail Energy Cannon Core Cannon Ballistic Gun Heavy Assault Rifle Ballistic Cannon Improved Light Cannon Launcher Grenade Launcher Special Weapon Molecular Deconstructor Impact Weapon Powered Hammer Build | -11 -10 -10 -9 -9 -8 -7 -7 -7 -7 -7 -6 -6 -6 -6 -6 -5 -5 -5 -5 -4 -4 -4 -4 -4 -4 -4 -3 -3 -3 -2 -2 -2 -1 -1 ------- Run | Yrd Mat Min Mat Min Mat Fac Was Fac Low Low Fac Ext Cet Arc Hub Fac Upp Upp Zhi Pro Fac Was Fac Upp Upp War Pro Res Qua Res Tes Sec Acc Com Slots Evolved 18 | . . . 2 . 2 2 . . . . 2 . . . . 2 . . . . 2 . . . . . . 2 . 2 . . 2 . Power 1 | . . . . . . . . . . . . . . . . . . . . . . . . . . . . . . . . . 1 . Propulsion 4 | . . . . . 2 1 . . . . 1 . . . . . . . . . . . . . . . . . . . . . . . Utility 13 | . . . 2 . . 1 . . . . 1 . . . . 2 . . . . 2 . . . . . . 2 . 2 . . 1 . Weapon . | . . . . . . . . . . . . . . . . . . . . . . . . . . . . . . . . . . . Parts Attached 530 | 8 18 4 48 10 36 14 . 10 3 1 11 21 2 3 2 33 . . 5 9 18 5 16 . 8 21 5 20 18 32 47 16 50 36 Power 41 | 1 1 . 2 1 1 2 . 2 . . 4 6 . . . 5 . . . . . . 1 . . 5 . 2 1 . 1 . 3 3 Engine 15 | 1 1 . 2 1 1 2 . 2 . . 2 2 . . . 1 . . . . . . . . . . . . . . . . . . Core 13 | . . . . . . . . . . . 2 2 . . . 4 . . . . . . 1 . . 3 . 1 . . . . . . Reactor 13 | . . . . . . . . . . . . 2 . . . . . . . . . . . . . 2 . 1 1 . 1 . 3 3 Propulsion 101 | 2 2 1 5 4 11 5 . 2 . . 3 6 . 2 1 12 . . . 1 4 2 10 . . 2 . 8 2 6 2 4 1 3 Treads 13 | . . . . . . . . . . . . . . . . . . . . . . . . . . . . . . 3 2 4 1 3 Leg . | . . . . . . . . . . . . . . . . . . . . . . . . . . . . . . . . . . . Wheel 24 | 2 2 1 5 4 10 . . . . . . . . . . . . . . . . . . . . . . . . . . . . . Hover 64 | . . . . . 1 5 . 2 . . 3 6 . 2 1 12 . . . 1 4 2 10 . . 2 . 8 2 3 . . . . Flight . | . . . . . . . . . . . . . . . . . . . . . . . . . . . . . . . . . . . Utility 233 | 2 10 3 17 . 9 4 . 3 2 1 2 5 1 1 1 11 . . 4 2 14 2 4 . 4 7 . 4 9 26 29 6 30 20 Device 150 | 1 4 1 7 . 2 . . 2 1 1 2 3 . . . 6 . . 2 1 3 . 4 . 3 4 . 2 7 16 28 5 29 16 Storage 15 | 1 1 . . . . 1 . . 1 . . 2 . . . 1 . . 1 1 . . . . . . . . 1 4 . . . 1 Processor 6 | . . . . . 2 . . . . . . . . . . 3 . . . . . . . . . . . . . . . . 1 . Hackware 25 | . . . . . . 3 . 1 . . . . . 1 1 . . . . . 9 2 . . . 1 . . . 6 . . . 1 Protection 37 | . 5 2 10 . 5 . . . . . . . 1 . . 1 . . 1 . 2 . . . 1 2 . 2 1 . 1 1 . 2 Artifact . | . . . . . . . . . . . . . . . . . . . . . . . . . . . . . . . . . . . Weapon 155 | 3 5 . 24 5 15 3 . 3 1 . 2 4 1 . . 5 . . 1 6 . 1 1 . 4 7 5 6 6 . 15 6 16 10 Energy Gun 24 | 2 . . . . . . . . . . . . . . . . . . . . . . 1 . 2 6 3 2 . . 5 1 2 . Energy Cannon 33 | . . . . . . . . . . . . . . . . 2 . . 1 3 . . . . . . . . 1 . 6 3 10 7 Ballistic Gun 33 | 1 4 . 13 2 10 1 . 1 . . . . . . . . . . . . . . . . . . . . . . 1 . . . Ballistic Cannon 14 | . . . 3 . . . . . . . . . . . . . . . . . . . . . . . . 2 4 . 1 1 . 3 Launcher 41 | . 1 . 8 3 2 . . 1 1 . 2 3 1 . . 1 . . . 2 . 1 . . 2 1 2 2 1 . 2 1 4 . Special Weapon 1 | . . . . . . . . . . . . . . . . . . . . 1 . . . . . . . . . . . . . . Impact Weapon 9 | . . . . . 3 2 . 1 . . . 1 . . . 2 . . . . . . . . . . . . . . . . . . Slashing Weapon . | . . . . . . . . . . . . . . . . . . . . . . . . . . . . . . . . . . . Piercing Weapon . | . . . . . . . . . . . . . . . . . . . . . . . . . . . . . . . . . . . Special Melee Weapon . | . . . . . . . . . . . . . . . . . . . . . . . . . . . . . . . . . . . Unidentified Prototypes 35 | . . . 1 . 1 2 . . . 1 2 . 1 . . 3 . . 2 1 . . . . . 6 . 1 1 6 5 1 . 1 Corrupted Parts 4 | . . . . . . . . . . . . . . 2 2 . . . . . . . . . . . . . . . . . . . System Corruption 35 | . . . . . . . . . . . . . . 20 15 . . . . . . . . . . . . . . . . . . . Parts Lost 56 | . . . 5 . 4 1 . . . . . 8 2 . 4 1 . . . 2 . . . . . . . . . . 3 . 2 24 Power 7 | . . . . . . . . . . . . 2 . . . . . . . . . . . . . . . . . . 1 . . 4 Propulsion 21 | . . . 2 . 3 . . . . . . 5 1 . 3 1 . . . 1 . . . . . . . . . . . . . 5 Utility 21 | . . . 3 . 1 1 . . . . . 1 1 . . . . . . . . . . . . . . . . . 1 . 2 11 Weapon 7 | . . . . . . . . . . . . . . . 1 . . . . 1 . . . . . . . . . . 1 . . 4 Highest Loss Streak 11 | . . . 2 . 2 1 . . . . . 2 2 . 4 1 . . . 2 . . . . . . . . . . 2 . 1 11 To Critical Strikes . | . . . . . . . . . . . . . . . . . . . . . . . . . . . . . . . . . . . Average Slot Usage (%) 89 | . 99 100 94 88 95 99 100 92 99 97 91 88 88 93 99 83 88 88 84 88 87 91 89 90 90 94 95 91 88 83 78 79 77 76 Engine 5 | . 14 14 11 11 9 7 7 7 7 7 9 6 6 6 6 4 . . . . . . . . . . . . . . . . . . Core 2 | . . . . . . . . . . . 1 2 6 6 6 4 11 11 11 11 10 10 9 10 10 5 5 4 . . . . . . Reactor 1 | . . . . . . . . . . . . 2 . . . . . . . . . . . . . 4 5 4 4 4 3 4 7 8 Treads 1 | . . . . . . . . . . . . . . . . . . . . . . . . . . . . . . 5 11 12 11 10 Wheel 8 | . 28 28 21 22 32 . . . . . . . . . . . . . . . . . . . . . . . . . . . . . Hover 14 | . . . . . . 37 38 38 38 36 36 32 26 31 36 26 27 27 27 27 24 25 25 25 25 25 25 26 26 14 . . . . Device 12 | . 8 10 9 11 8 7 7 7 6 7 10 9 12 12 6 9 16 16 12 10 7 5 8 10 9 10 10 8 12 11 24 33 33 38 Storage 7 | . 14 14 11 11 9 7 7 7 7 7 6 6 6 6 6 5 5 5 5 5 5 5 5 5 5 5 5 4 4 4 4 4 3 4 Processor 6 | . . . . . 8 7 7 7 7 7 6 6 6 6 6 10 11 11 11 11 10 10 10 10 10 10 10 9 9 8 8 8 7 4 Hackware 11 | . . . . . . 14 15 15 15 14 12 12 7 7 17 15 11 11 11 11 22 30 26 25 25 24 25 22 20 27 17 8 5 . Protection 4 | . 5 3 18 11 8 . . . . . . . 4 4 . . . . 2 5 2 . . . . . . 1 3 4 2 4 1 1 Energy Cannon 1 | . . . . . . . . . . . . . . . . 1 5 5 1 1 5 5 4 . . . . . 2 4 2 2 2 2 Ballistic Gun 6 | . 27 28 19 1 17 7 7 . . . . . . . . . . . . . . . . . . . . . . . . . . . Launcher 1 | . . . . 20 . . . . 6 7 . 2 6 6 6 . . . . 1 . 1 . . 1 1 . . . . . . 1 . Impact Weapon 1 | . . . . . . 6 7 7 7 7 6 5 6 6 6 3 . . . . . . . . . . . . . . . . . . Peak Build Rating 245 | 7 10 10 23 21 30 38 38 41 44 44 60 58 61 70 64 100 99 99 100 116 124 139 142 142 143 161 161 164 189 211 217 222 245 239 Average Rating 93 | 6 8 10 16 19 24 35 38 37 43 43 51 51 59 63 63 78 99 99 96 106 113 131 135 142 142 157 160 159 176 196 204 215 231 221 On Entrance 94 | . 7 10 10 21 21 28 38 38 41 44 44 58 56 61 64 55 99 99 99 100 97 123 131 142 142 142 161 161 163 187 211 201 222 228 Naked Turns . | . . . . . . . . . . . . . . . . . . . . . . . . . . . . . . . . . . . Heaviest Build 198 | 12 91 91 111 111 111 36 36 40 39 39 44 56 58 58 50 86 70 70 69 78 69 76 69 67 70 85 85 86 138 135 159 166 198 195 Greatest Support 240 | 26 26 20 32 32 48 36 36 40 40 40 49 49 43 52 52 70 70 70 70 70 70 72 75 74 74 80 80 93 93 240 240 235 240 240 Greatest Overweight (x) 5 | 2 4 4 5 5 5 . . 1 . . . 1 1 1 1 1 . . . 1 . 1 . . . 1 1 1 1 1 . . . . Average Overweight (x) . | . 1 4 3 4 2 . . . . . . . 1 . . . . . . . . . . . . . . . . . . . . . Largest Inventory Capacity 25 | 8 25 25 25 25 25 25 15 15 25 15 15 20 15 15 15 20 20 20 20 20 20 20 20 20 20 20 20 20 25 25 25 25 25 25 Average Capacity 21 | 7 17 25 25 25 25 15 15 15 15 15 15 15 15 15 15 17 20 20 20 20 20 20 20 20 20 20 20 20 21 23 25 25 25 25 Most Carried 25 | 6 22 24 25 25 25 25 15 15 15 14 15 15 14 15 15 20 20 20 20 20 20 20 20 20 20 20 20 20 20 25 25 25 25 25 Average Carried 20 | 3 12 22 24 25 24 14 15 14 14 14 14 14 14 14 14 17 20 20 19 19 19 19 19 20 20 19 20 19 19 22 22 23 24 20 Final Capacity 25 | 8 25 25 25 25 25 15 15 15 15 15 15 15 15 15 15 20 20 20 20 20 20 20 20 20 20 20 20 20 25 25 25 25 25 25 Final Carried 25 | 6 22 24 25 25 25 15 15 15 14 14 15 15 14 15 13 20 20 20 20 18 20 20 20 20 20 20 20 20 19 25 23 25 24 7 Class Distribution -------------------- 27% | Mutant 19% | Hacker-Mutant 12% | Wizard-Scout 10% | Hacker-Scout 6% | Machinist-Mutant 5% | Wizard-Mutant 5% | Wizard-Skirmisher 3% | Scavenger-Mutant Dominant Class ---------------- Mutant | -10/Materials Mutant | -10/Mines Mutant | -9/Materials Mutant | -9/Mines Mutant | -8/Materials Hacker-Mutant | -7/Factory Hacker-Mutant | -7/Waste Hacker-Mutant | -7/Factory Hacker-Mutant | -7/Lower Caves Hacker-Mutant | -7/Lower Caves Hacker-Mutant | -6/Factory Hacker-Mutant | -6/Extension Mutant | -6/Cetus Commander-Mutant | -6/Archives Hacker-Mutant | -6/Hub_04(d) Hacker-Scout | -5/Factory Hacker-Scout | -5/Upper Caves Hacker-Scout | -5/Upper Caves Hacker-Scout | -5/Zhirov Hacker-Scout | -4/Proximity Caves Hacker-Scout | -4/Factory Wizard-Mutant | -4/Waste Wizard-Scout | -4/Factory Wizard-Scout | -4/Upper Caves Wizard-Scout | -4/Upper Caves Wizard-Scout | -4/Warlord Wizard-Scout | -3/Proximity Caves Wizard-Scout | -3/Research Wizard-Scout | -3/Quarantine Wizard-Skirmisher | -2/Research Hacker-Mutant | -2/Testing Machinist-Mutant | -2/Section 7 Machinist-Mutant | -1/Access Alien-Mutant | -1/Command Resources | -11 -10 -10 -9 -9 -8 -7 -7 -7 -7 -7 -6 -6 -6 -6 -6 -5 -5 -5 -5 -4 -4 -4 -4 -4 -4 -4 -3 -3 -3 -2 -2 -2 -1 -1 ----------- Run | Yrd Mat Min Mat Min Mat Fac Was Fac Low Low Fac Ext Cet Arc Hub Fac Upp Upp Zhi Pro Fac Was Fac Upp Upp War Pro Res Qua Res Tes Sec Acc Com Matter Collected 11891 | 307 403 103 1205 245 1181 299 68 36 228 . 103 505 70 35 . 292 168 28 60 124 265 40 220 122 220 210 66 415 154 1115 872 464 1525 743 Remotely . | . . . . . . . . . . . . . . . . . . . . . . . . . . . . . . . . . . . Salvage Created 19270 | 126 495 165 1774 139 1550 180 740 40 54 . 123 1289 270 74 28 347 161 . 428 100 93 88 242 79 9 62 81 579 200 434 2458 1102 3930 1830 Parts 746 | 7 40 9 100 7 79 1 12 2 8 . 6 33 9 8 . 10 4 . 7 3 6 4 11 . . . 2 15 11 13 103 42 150 44 Haulers Intercepted 11 | . 1 . 4 . 2 . . . . . . . . . . . . . . . . . . . . . . . . . 1 . 3 . Recyclers Shooed 16 | . . . 2 . 3 . . . . . . 2 . . . . 1 . . . . . . . . . . 2 . . . . 6 . Parts Field Recycled . | . . . . . . . . . . . . . . . . . . . . . . . . . . . . . . . . . . . Retrieved Matter . | . . . . . . . . . . . . . . . . . . . . . . . . . . . . . . . . . . . Parts Self-Destructed 15 | . . . . . . . . . 7 . . . . . . . . . 5 2 . . . . . . 1 . . . . . . . Prevented 2 | . . . . . . . . . . . . . . . . . . . . 1 . . . . . . 1 . . . . . . . Kills | -11 -10 -10 -9 -9 -8 -7 -7 -7 -7 -7 -6 -6 -6 -6 -6 -5 -5 -5 -5 -4 -4 -4 -4 -4 -4 -4 -3 -3 -3 -2 -2 -2 -1 -1 ------- Run | Yrd Mat Min Mat Min Mat Fac Was Fac Low Low Fac Ext Cet Arc Hub Fac Upp Upp Zhi Pro Fac Was Fac Upp Upp War Pro Res Qua Res Tes Sec Acc Com Combat Hostiles Destroyed 251 | . 10 4 39 4 28 . . 3 4 . . 12 3 . . 2 . . . 4 . . 1 . 1 1 2 5 5 6 31 13 49 24 Melee 2 | . . . . . . . . . . . . 1 . . . . . . . . . . . . . . . . . . . . 1 . Guns 54 | . 10 4 16 1 18 . . . . . . . . . . . . . . . . . . . . 1 . 1 . . 1 . 2 . Cannons 73 | . . . 3 1 . . . . . . . . . . . . . . . . . . 1 . . . . 1 2 6 16 5 15 23 AOE 81 | . . . 20 2 9 . . 3 4 . . 6 . . . 2 . . . 2 . . . . 1 . 2 3 3 . 3 2 19 . Classes Destroyed 30 | 2 7 . 3 1 1 . 2 . . . . 1 . . . 1 . . . 1 . . . . . . . . 1 2 3 1 1 3 Worker 18 | . 1 . . . 5 1 . . . . 1 2 . . . 1 . . . . . . 1 . . . . 1 . . 1 . 4 . Builder 16 | . 1 . . . 3 . . . . . . 3 . . 2 1 . . . . . . 1 . . . . . . . 3 . 2 . Tunneler 8 | 3 . . . . 2 . . . . . . 1 . . . 1 . . . . . . . . . . . . . . . . 1 . Hauler 11 | . 1 . 4 . 2 . . . . . . . . . . . . . . . . . . . . . . . . . 1 . 3 . Recycler 31 | 1 . . 6 . 3 1 . . . . 1 5 . . . 2 . . . . . . 1 . . . . 4 1 1 2 . 2 1 Carrier 1 | . . . . . . . . . . . . . . . . . . . . . . . . . . . . . . . . . 1 . Operator 9 | . 1 . 2 . 2 . . . . . . 1 . . . . . . . . . . . . . . . . . . 1 . 1 1 Drone 4 | . . . . . . . . . . . . . . . . . . . . 2 . . . . . . 2 . . . . . . . Watcher 26 | . 3 . 4 . 2 3 . 1 . . . 2 1 . . 3 . . . . 2 . . . . . . 1 1 1 1 1 . . Swarmer 41 | . 3 . 6 . 4 . . 3 4 . . . . . . . . . . . . . . . . . . 5 3 . . . 13 . Saboteur 4 | . . . . . . . . . . . . . . . . . . . . . . . . . . . . . . . 1 . 3 . Grunt 99 | . 7 4 23 3 18 . . . . . . 6 . . . . . . . 1 . . . . . . . . . . 13 9 12 3 Brawler 8 | . . . . . 1 . . . . . . 1 . . . . . . . . . . . . . 1 . . . . 2 . 3 . Duelist 5 | . . . 1 . 1 . . . . . . . . . . . . . . 1 . . . . . . . . . . . . 1 1 Protector 1 | . . . 1 . . . . . . . . . . . . . . . . . . . . . . . . . . . . . . . Researcher 2 | . . . . . . . . . . . . . . . . . . . . . . . . . . . . . . . 1 1 . . Sentry 23 | . . . 8 . 4 . . . . . . 3 . . . . . . . . . . . . . . . . . . . 3 4 1 Specialist 1 | . . . . . . . . . . . . . . . . . . . . . . . . . . . . . . . . . . 1 Hunter 23 | . . . . . . . . . . . . . . . . . . . . . . . . . . . . . 2 2 4 . 8 7 Programmer 21 | . . . . . . . . . . . . . . . . 2 . . . . . . 1 . 1 . . . . . 8 . 4 5 Heavy 1 | . . . . . . . . . . . . . . . . . . . . . . . . . . . . . . . . . . 1 Q-Series 2 | . . . . . . . . . . . . . . . . . . . . . . . . . . . . . . . . 1 1 . Behemoth 3 | . . . . . . . . . . . . 2 . . . . . . . . . . . . . . . . . . . . . 1 Cetus Guard 3 | . . . . . . . . . . . . . 3 . . . . . . . . . . . . . . . . . . . . . Combat Programmer 2 | . . . . . . . . . . . . . . . . . . . . . . . . . . . . . . . . . . 2 Striker 3 | . . . . . . . . . . . . . . . . . . . . . . . . . . . . . . 1 2 . . . Executioner 3 | . . . . . . . . . . . . . . . . . . . . . . . . . . . . . . 3 . . . . Alpha 7 1 | . . . . . . . . . . . . . . . . . . . . . . . . . . . . . . . 1 . . . Packrat 3 | . . . . . . . . . . . . . . . . . 2 . . . . . . . . . 1 . . . . . . . Assembled 2 | . . . . 2 . . . . . . . . . . . . . . . . . . . . . . . . . . . . . . Surgeon 3 | . . . . . . . 2 . . . . . . . . . . . . . . 1 . . . . . . . . . . . . Wasp 10 | . . . . . . . 5 . . . . . . . . . . . . . . 3 . . . . . . . . . . . 2 Thug 6 | . . . . . . . 6 . . . . . . . . . . . . . . . . . . . . . . . . . . . Butcher 3 | . . . . . . . 2 . . . . 1 . . . . . . . . . . . . . . . . . . . . . . Martyr 1 | . . . . . . . 1 . . . . . . . . . . . . . . . . . . . . . . . . . . . Fireman 1 | . . . . . . . . . . . . . . . . . . . . . . . . . . . . . . . . . . 1 Best Kill Streak 16 | 2 5 2 5 2 13 2 . 3 3 . 1 12 4 . 2 4 . . . 1 1 . 2 . 1 1 1 5 3 6 7 8 16 16 Combat Bots Only 15 | . 3 2 5 2 11 . . 3 3 . . 5 3 . . 2 . . . 1 . . 1 . 1 1 1 3 3 6 5 8 13 15 Max Kills in Single Turn 4 | 1 1 1 3 1 2 1 2 2 2 . 1 4 2 . 1 2 1 . . 1 1 2 2 . 1 1 1 4 3 1 2 3 3 3 Gunslinging . | . . . . . . . . . . . . . . . . . . . . . . . . . . . . . . . . . . . Exploded 3 | . . . 3 1 2 . . 2 2 . . 1 . . . 2 . . . 1 . . . . 1 . 1 2 3 . 2 1 3 . Melee 1 | . . . . . . . . . . . . 1 . . . . . . . . . . . . . . . . . . . . 1 . Uniques/NPCs Destroyed 2 | . . . . . . . . . . . . . . . . . . . . . . . . . . . . . . . . . . 2 MAIN.C Shell (-1/Command) MAIN.C (-1/Command) Combat | -11 -10 -10 -9 -9 -8 -7 -7 -7 -7 -7 -6 -6 -6 -6 -6 -5 -5 -5 -5 -4 -4 -4 -4 -4 -4 -4 -3 -3 -3 -2 -2 -2 -1 -1 -------- Run | Yrd Mat Min Mat Min Mat Fac Was Fac Low Low Fac Ext Cet Arc Hub Fac Upp Upp Zhi Pro Fac Was Fac Upp Upp War Pro Res Qua Res Tes Sec Acc Com Hostile Shots Fired 1648 | . 41 19 128 9 111 1 . 15 17 . 2 90 6 . 41 18 . 6 . 36 14 . 17 . 13 . 32 22 30 57 188 99 225 411 Missed 502 | . 10 8 36 5 26 1 . 8 8 . 1 41 2 . 23 4 . 4 . 13 9 . 6 . 6 . 16 13 6 9 50 34 69 94 Intercepted 6 | . . . . . . . . . . . . . . . . . . . . . . . . . . . . . . . . . . 6 Damage Taken 17123 | . 370 162 1329 49 1242 . . 87 153 . 60 645 53 18 181 417 . 47 . 558 99 . 360 . 141 11 275 201 459 903 2006 303 1569 5425 Core 1773 | . 52 18 203 21 88 . . 10 29 . 12 91 . . 33 65 . 27 . 139 23 . 8 . 22 . 72 64 41 93 102 17 165 378 Absorbed by Shields 1649 | . . . . . . . . . . . . 192 51 . . . . . . . . . . . . 11 . . . . 268 308 748 71 Reduced by Siege Mode 804 | . . . . . . . . . . . . . . . . . . . . . . . . . . . . . . 222 . . . 582 Redirected to Shielding 527 | . . . . . . . . . . . . . . . . . . . . 39 . . . . 38 . . 22 75 20 187 32 28 86 Ignored by Resistances 8196 | . . . . . . . . . . . . . . . . . . . . . . . . . . . . . . 427 1105 1122 2218 3324 Regen/Repaired (Parts) 2337 | . 31 . 255 . 133 . . . . . . 267 . . . 235 . . . . 63 . 734 . . . . . 60 . 559 . . . Core Remaining (%) 72 | 100 . 72 . 44 84 . . . . 94 . . . . 84 . . . . 76 . . . . . . 89 . 72 . . 6 . . Volleys Fired 1017 | 9 57 13 103 15 147 . 10 3 6 . . 28 6 6 . 12 12 6 12 32 41 5 62 16 16 6 15 42 27 18 65 26 107 94 Largest 2 | 2 2 2 2 2 2 . 1 1 1 . . 1 1 1 . 1 1 1 1 1 1 1 1 1 1 1 1 2 1 1 2 1 2 2 Hottest 300 | 60 40 40 62 62 56 . 25 36 36 . . 45 36 36 . 85 85 85 85 85 85 85 85 65 65 65 80 111 300 300 300 300 300 300 Shots Fired 1344 | 18 113 26 190 27 260 . 10 3 6 1 . 28 6 5 . 12 12 6 12 32 41 5 63 15 16 6 15 44 27 18 78 26 106 117 Gun 665 | 18 112 26 150 17 241 . 10 . . . . . . . . . . . . . . . 10 15 9 6 13 8 . . 22 . 8 . Cannon 477 | . . . 20 5 . . . . . . . . . . . 6 12 6 12 11 41 2 53 . . . . 33 26 18 46 21 49 116 Launcher 185 | . 1 . 20 5 19 . . 3 6 1 . 28 6 5 . 6 . . . 4 . 3 . . 7 . 2 3 1 . 10 5 49 1 Special 17 | . . . . . . . . . . . . . . . . . . . . 17 . . . . . . . . . . . . . . Kinetic 687 | 9 112 26 170 22 241 . 10 . . . . . . . . . . . . . . . . . . . . 33 13 . 6 7 . 38 Thermal 423 | 9 . . . . . . . . . . . . . . . 6 12 6 12 11 41 2 63 15 9 5 13 6 13 18 41 14 49 78 Explosive 85 | . 1 . 20 5 19 . . 3 6 1 . 10 . . . 6 . . . . . 3 . . 7 . . 3 1 . . . . . Electromagnetic 100 | . . . . . . . . . . . . 18 6 5 . . . . . 4 . . . . . . 2 . . . 10 5 49 1 Entropic 32 | . . . . . . . . . . . . . . . . . . . . . . . . . . 1 . 2 . . 21 . 8 . Robot Hit Streak 38 | 3 13 6 19 8 17 . 2 1 3 . . 16 3 3 . 3 1 . 3 4 2 4 4 4 3 2 4 9 11 11 17 8 13 38 Robot Miss Streak 10 | 1 2 2 4 3 6 . 3 5 1 . . 3 1 2 . 1 1 . 1 2 3 1 4 . 4 6 6 4 1 1 3 3 7 10 Penetration Max 4 | . . . . . . . . . . . . . . . . . . . . . . . . . . . . . . . 1 . 4 3 Secondary Targets 3 | . 1 . . . 1 . . . . . . . . . . . . . . . . . . . . . . . . . 1 . . . Max Gunslinging Chain 1 | . 1 . . . 1 . . . . . . . . . . . . . . . . . . . . . . . . . 1 . . . Capacitor 87 | . . . . . . . . . . . . . . . . . . . . . . . . . . . . . . . . . 55 32 Shots Hit Robots 869 | 11 73 18 130 16 181 5 23 2 2 . 2 32 4 3 2 12 4 . 8 6 5 3 17 1 5 2 4 21 14 14 66 17 80 86 Core Hits 701 | 5 33 10 88 10 93 . 5 7 4 . 1 71 4 8 . 8 2 . 5 1 2 5 11 1 2 1 4 14 3 6 55 32 164 46 Critical Kills 39 | . . . . . . . . . . . . 1 . . . . . . . . 1 . . . . . . . 1 6 13 3 8 6 Critical Parts Destroyed 72 | . 1 . . . 5 1 3 . . . 1 3 . . 1 1 . . . . . . . . . . . . 5 7 19 4 13 8 Critical Strikes 135 | . 1 . 1 . 5 1 3 . . . 1 4 . . 1 1 . . . . 1 . . . . . . . 6 14 32 10 24 30 Meltdown 6 | . . . . . . . . . . . . . . . . . . . . . 1 . . . . . . . . . 3 . 1 1 Destroy 105 | . 1 . . . 2 . . . . . . . . . . . . . . . . . . . . . . . 6 14 27 10 22 23 Blast 7 | . . . 1 . . . . . . . . . . . . . . . . . . . . . . . . . . . . . . 6 Smash 14 | . . . . . 3 1 3 . . . 1 4 . . 1 1 . . . . . . . . . . . . . . . . . . Detonate 3 | . . . . . . . . . . . . . . . . . . . . . . . . . . . . . . . 2 . 1 . Melee Attacks 138 | . . . . . 9 20 20 32 6 1 10 21 . . 8 11 . . . . . . . . . . . . . . . . . . Impact 138 | . . . . . 9 20 20 32 6 1 10 21 . . 8 11 . . . . . . . . . . . . . . . . . . Slashing . | . . . . . . . . . . . . . . . . . . . . . . . . . . . . . . . . . . . Piercing . | . . . . . . . . . . . . . . . . . . . . . . . . . . . . . . . . . . . Sneak Attacks 40 | . . . . . 5 2 20 . . . 2 5 . . 2 4 . . . . . . . . . . . . . . . . . . Combat Hostiles 1 | . . . . . . . . . . . . 1 . . . . . . . . . . . . . . . . . . . . . . Follow-up Attacks . | . . . . . . . . . . . . . . . . . . . . . . . . . . . . . . . . . . . Damage Inflicted 62926 | 125 792 187 3462 488 4425 319 1839 349 266 . 160 3415 449 230 226 1110 121 . 296 170 154 445 755 31 462 61 191 1412 1809 2960 9325 3151 11406 12335 Guns 7220 | 125 792 187 1613 187 2462 . 70 . . . . . . . . . . . . . . . 187 31 38 61 121 194 . . 926 . 226 . Cannons 34096 | . . . 278 84 . . . . . . . . . . . 32 121 . 296 . 154 62 363 . . . . 559 1469 2960 6601 2185 6610 12322 Explosions 17323 | . . . 1571 217 1504 . . 319 266 . . 2613 449 230 . 556 . . . 170 . 383 205 . 424 . 70 659 340 . 1798 966 4570 13 Melee 4287 | . . . . . 459 319 1769 30 . . 160 802 . . 226 522 . . . . . . . . . . . . . . . . . . Ramming . | . . . . . . . . . . . . . . . . . . . . . . . . . . . . . . . . . . . Kinetic 10284 | 49 792 187 1891 271 2462 . 70 . . . . . . . . . . . . . . . . . . . . 559 269 . 505 95 . 3134 Thermal 30834 | 76 . . . . . . . . . . . 94 . . . 32 121 . 296 . 154 62 550 31 38 61 121 153 1200 2960 6461 2146 7090 9188 Explosive 8160 | . . . 1571 217 1504 . . 319 266 . . 1921 . . . 556 . . . . . 383 . . 424 . . 659 340 . . . . . Electromagnetic 8168 | . . . . . . . . . . . . 598 449 230 . . . . . 170 . . 205 . . . 70 . . . 1433 910 4090 13 Impact 4287 | . . . . . 459 319 1769 30 . . 160 802 . . 226 522 . . . . . . . . . . . . . . . . . . Slashing . | . . . . . . . . . . . . . . . . . . . . . . . . . . . . . . . . . . . Piercing . | . . . . . . . . . . . . . . . . . . . . . . . . . . . . . . . . . . . Entropic 1193 | . . . . . . . . . . . . . . . . . . . . . . . . . . . . 41 . . 926 . 226 . Highest Corruption 33 | . . . . . 3 . . 1 1 1 . 1 . 19 33 2 2 2 2 3 . . 12 12 13 13 1 . . 2 5 . 8 15 Average Corruption 4 | . . . . . 2 . . 1 1 1 . 1 . 14 21 2 2 2 2 2 . . 10 12 12 13 1 . . 2 4 . 5 9 Corruption Purged 4 | . . . . . . . . . . . . 1 . 3 . . . . . . . . . . . . . . . . . . . . Corruption Blocked . | . . . . . . . . . . . . . . . . . . . . . . . . . . . . . . . . . . . Effects 259 | . . . . . 24 . . 6 4 2 . 5 . 5 4 4 3 8 2 13 . . 47 10 8 1 3 . . 21 37 . 22 30 Message Errors 60 | . . . . . 6 . . . . . . . . 1 2 2 2 1 . 5 . . 9 3 3 1 1 . . 2 9 . 7 6 Matter Fused 64 | . . . . . 2 . . 1 1 . . 2 . 2 1 . . 3 . 2 . . 14 3 3 . . . . 8 5 . 9 8 Heat Flow Errors 27 | . . . . . 1 . . 1 1 . . . . . . . . . 1 5 . . 4 1 1 . 1 . . 2 4 . 1 4 Energy Discharges 28 | . . . . . 4 . . . . . . . . . . 2 1 . . . . . 9 1 . . 1 . . 2 4 . 1 3 Parts Rejected 2 | . . . . . 1 . . . . . . . . . . . . . . . . . . . . . . . . . 1 . . . Parts Fused 1 | . . . . . . . . . . . . . . . . . . . . . . . 1 . . . . . . . . . . . Data Loss (minor) 32 | . . . . . 4 . . 4 1 . . 1 . . 1 . . 4 1 1 . . 2 . 1 . . . . 4 5 . . 3 Data Loss (major) 13 | . . . . . 3 . . . . . . 1 . . . . . . . . . . 2 . . . . . . 2 4 . 1 . Misfires 12 | . . . . . . . . . . 1 . . . . . . . . . . . . 3 . . . . . . . 4 . . 4 Alerts 9 | . . . . . 2 . . . 1 1 . 1 . . . . . . . . . . 1 1 . . . . . 1 1 . . . Misdirections 1 | . . . . . . . . . . . . . . 1 . . . . . . . . . . . . . . . . . . . . Weapon Failures 10 | . . . . . 1 . . . . . . . . 1 . . . . . . . . 2 1 . . . . . . . . 3 2 Overload Shots . | . . . . . . . . . . . . . . . . . . . . . . . . . . . . . . . . . . . Overflow Damage 8523 | . . . 22 . 351 159 880 16 17 . 82 376 23 16 196 260 . . 75 56 6 . 45 . 34 . . 115 568 585 2066 201 1660 714 Projectiles 5750 | . . . 12 . . . 4 . . . . . . . . . . . 75 . 6 . 45 . . . . 25 386 585 2056 201 1649 706 Explosions 519 | . . . 10 . 11 . . 8 17 . . 22 23 16 . 21 . . . 56 . . . . 34 . . 90 182 . 10 . 11 8 Melee 2254 | . . . . . 340 159 876 8 . . 82 354 . . 196 239 . . . . . . . . . . . . . . . . . . Knockbacks 50 | . . . 4 . 3 . 14 . . . . 4 . . 2 1 . . . . . . . . . . . 4 3 . 2 . . 13 Impact 21 | . . . . . 3 . 11 . . . . 4 . . 2 1 . . . . . . . . . . . . . . . . . . Kinetic 24 | . . . 3 . . . . . . . . . . . . . . . . . . . . . . . . 4 3 . 2 . . 12 Secondary 5 | . . . 1 . . . 3 . . . . . . . . . . . . . . . . . . . . . . . . . . 1 Self-Inflicted Damage 967 | . . . . . 18 . . . . . . 54 . 18 . 76 . . . 31 . . 133 . . . 16 1 19 . 215 18 358 10 Shots 78 | . . . . . 1 . . . . . . 4 . 1 . 1 . . . 1 . . 3 . . . 2 1 1 . 14 2 46 1 Rammed 1 | . . . . . . . . . . . . . . . . . . . . . . . . . . . . . . . . . 1 . Targets Rammed 1 | . . . . . . . . . . . . . . . . . . . . . . . . . . . . . . . . . 1 . Kicked . | . . . . . . . . . . . . . . . . . . . . . . . . . . . . . . . . . . . Crushed . | . . . . . . . . . . . . . . . . . . . . . . . . . . . . . . . . . . . Highest Temperature 710 | . 38 30 59 71 116 . 7 162 93 17 71 49 6 12 5 28 24 22 278 229 76 20 215 142 118 . 117 4 424 219 460 198 710 489 Average Temperature 53 | . 11 11 12 26 22 . 3 75 51 12 13 11 4 5 3 13 10 9 129 62 18 12 41 51 45 . 57 4 137 124 124 80 125 93 Received Heat Transfer 2506 | . 189 84 564 27 738 . . 18 . . . 235 . . 51 . . . . 139 18 . 45 . . . . . . . 68 1 77 252 Effects 7 | . . . . . . . . . . . . . . . . . . . 1 1 . . . . . . . . 1 . 1 . 2 1 Shutdowns 3 | . . . . . . . . . . . . . . . . . . . . . . . . . . . . . . . . . 2 1 Energy Bleed 2 | . . . . . . . . . . . . . . . . . . . 1 . . . . . . . . . . . 1 . . . Interference 1 | . . . . . . . . . . . . . . . . . . . . 1 . . . . . . . . . . . . . . Short Circuit 1 | . . . . . . . . . . . . . . . . . . . . . . . . . . . . . 1 . . . . . Siege Activations 9 | . . . . . . . . . . . . . . . . . . . . . . . . . . . . . . 1 1 . . 7 Total Turns 149 | . . . . . . . . . . . . . . . . . . . . . . . . . . . . . . 20 3 . . 126 Longest Duration 33 | . . . . . . . . . . . . . . . . . . . . . . . . . . . . . . 20 3 . . 33 Robots Corrupted 59 | . . . . . 3 3 8 1 . . . 8 4 . 2 3 . . . . . . . . . . . . . . 10 6 11 . Combat Hostiles 35 | . . . . . 1 . . . . . . 5 3 . . . . . . . . . . . . . . . . . 9 6 11 . Parts Fried 113 | . . . . . 6 9 14 1 . . . 16 4 2 2 10 . . . 1 . . . . . . . . . . 15 10 22 1 Impact Corruptions 71 | . . . . . 10 7 24 1 . . 1 11 . . 8 9 . . . . . . . . . . . . . . . . . . Robots Melted 6 | . . . . . . . . . . . . . . . . . . . . . 1 . . . . . . . . . 3 . 1 1 Combat Hostiles 4 | . . . . . . . . . . . . . . . . . . . . . . . . . . . . . . . 2 . 1 1 Parts Melted 33 | . . . . . . . . . . . . . . . . . . . . . 3 . 1 . . . . . . . 16 . 5 8 Heat Transferred 4583 | 175 . . . . . . . . . . . 100 . . . 37 148 . 249 . 185 74 629 37 37 74 148 185 . . 300 50 1127 1028 Parts Sabotaged 2 | . . . . . . . . . . . . . . . . . . . . . . . . . . . . . . . . . 2 . Parts Stolen . | . . . . . . . . . . . . . . . . . . . . . . . . . . . . . . . . . . . Parts Stripped . | . . . . . . . . . . . . . . . . . . . . . . . . . . . . . . . . . . . Power Chain Reactions 14 | . . . . . . . . . . . . 2 . . . . . . . . . . 1 . . . . . . . 3 1 7 . Alert | -11 -10 -10 -9 -9 -8 -7 -7 -7 -7 -7 -6 -6 -6 -6 -6 -5 -5 -5 -5 -4 -4 -4 -4 -4 -4 -4 -3 -3 -3 -2 -2 -2 -1 -1 ------- Run | Yrd Mat Min Mat Min Mat Fac Was Fac Low Low Fac Ext Cet Arc Hub Fac Upp Upp Zhi Pro Fac Was Fac Upp Upp War Pro Res Qua Res Tes Sec Acc Com Peak Influence 1855 | 20 267 110 724 344 403 144 93 188 . . 62 237 73 403 195 245 . . . . 327 122 383 . . . . 419 304 210 702 563 1855 1667 Initial 1115 | . 13 15 19 282 . 77 50 . . . 21 . . 29 140 39 . . . . 312 68 85 . . . . 177 94 100 117 239 337 1115 Average 220 | 8 100 45 276 134 251 71 61 81 . . 35 75 56 94 131 84 . . . . 141 88 123 . . . . 171 146 55 309 254 944 1340 Maximum Alert Level 5 | . 1 . 3 1 2 . . . . . . 1 . 2 . 1 . . . . 1 . 1 . . . . 2 1 1 3 2 5 5 Low Security (%) 63 | 100 84 100 52 72 24 100 100 100 . . 100 98 100 86 100 98 . . . . 69 100 77 . . . . 56 81 91 24 39 . . Level 1 23 | . 15 . 15 27 75 . . . . . . 1 . 12 . 1 . . . . 30 . 22 . . . . 41 18 8 49 48 15 . Level 2 6 | . . . 24 . . . . . . . . . . 1 . . . . . . . . . . . . . 2 . . 24 12 24 . Level 3 2 | . . . 7 . . . . . . . . . . . . . . . . . . . . . . . . . . . 1 . 23 . Level 4 3 | . . . . . . . . . . . . . . . . . . . . . . . . . . . . . . . . . 16 87 Level 5 1 | . . . . . . . . . . . . . . . . . . . . . . . . . . . . . . . . . 19 12 High Security . | . . . . . . . . . . . . . . . . . . . . . . . . . . . . . . . . . . . Max Security . | . . . . . . . . . . . . . . . . . . . . . . . . . . . . . . . . . . . Squads Dispatched 82 | . 1 . 7 . 11 4 . 6 . . 1 3 . . 2 3 . . . . 5 . 5 . . . . 2 2 1 12 5 10 2 Investigation 27 | . . . 3 . 6 3 . 5 . . . 1 . . 1 2 . . . . 3 . 1 . . . . . . . 2 . . . Extermination 14 | . . . . . . 1 . . . . 1 . . . . 1 . . . . 1 . 1 . . . . 1 2 . 3 1 2 . Reinforcement 26 | . 1 . 3 . 2 . . . . . . 2 . . 1 . . . . . 1 . 3 . . . . 1 . 1 4 3 4 . Assault 10 | . . . 1 . . . . . . . . . . . . . . . . . . . . . . . . . . . 3 . 4 2 Garrison 5 | . . . . . 3 . . 1 . . . . . . . . . . . . . . . . . . . . . . . 1 . . Intercept . | . . . . . . . . . . . . . . . . . . . . . . . . . . . . . . . . . . . Searches Triggered 1 | . . . . . . . . . . . . . . . . . . . . . . . . . . . . 1 . . . . . . Construction Impeded 8 | . . . 1 . . . . . . . . 1 . . . . . . . . . . 3 . . . . 1 . . 1 . 1 . Haulers Reinforced 4 | . . . . . . . . . . . . . . . . . . . . . . . . . . . . . . 1 1 . 2 . Active Scanning Responses . | . . . . . . . . . . . . . . . . . . . . . . . . . . . . . . . . . . . Cargo Convoy Interrupts . | . . . . . . . . . . . . . . . . . . . . . . . . . . . . . . . . . . . Stealth | -11 -10 -10 -9 -9 -8 -7 -7 -7 -7 -7 -6 -6 -6 -6 -6 -5 -5 -5 -5 -4 -4 -4 -4 -4 -4 -4 -3 -3 -3 -2 -2 -2 -1 -1 --------- Run | Yrd Mat Min Mat Min Mat Fac Was Fac Low Low Fac Ext Cet Arc Hub Fac Upp Upp Zhi Pro Fac Was Fac Upp Upp War Pro Res Qua Res Tes Sec Acc Com Distress Signals 64 | . 3 . 6 . 11 . . 2 . . . 5 1 . . . . . . . 1 . . . . 2 . 3 2 5 4 2 1 16 Communications Jammed . | . . . . . . . . . . . . . . . . . . . . . . . . . . . . . . . . . . . Distress Signals . | . . . . . . . . . . . . . . . . . . . . . . . . . . . . . . . . . . . Times Spotted 534 | . 22 4 59 3 55 5 6 17 10 . 3 32 4 7 13 7 . 1 . 13 14 . 15 . 3 11 5 18 12 8 52 29 66 40 Peak Tracking Total 13 | . 4 4 5 2 5 2 4 5 7 . 5 7 5 8 12 3 . 1 . 9 7 . 7 . 2 6 3 6 5 4 7 9 11 13 Tactical Retreats 61 | . 2 1 2 . 8 1 . 5 5 . . 3 . . 1 . . 1 . . 4 . 3 . 1 3 2 3 2 . 3 . 9 2 Traps | -11 -10 -10 -9 -9 -8 -7 -7 -7 -7 -7 -6 -6 -6 -6 -6 -5 -5 -5 -5 -4 -4 -4 -4 -4 -4 -4 -3 -3 -3 -2 -2 -2 -1 -1 ------- Run | Yrd Mat Min Mat Min Mat Fac Was Fac Low Low Fac Ext Cet Arc Hub Fac Upp Upp Zhi Pro Fac Was Fac Upp Upp War Pro Res Qua Res Tes Sec Acc Com Traps Triggered 25 | . . . 4 . 6 2 . 1 . . 1 3 . . . 2 . . . . 1 . 3 . . . . . . . 2 . . . Indirectly . | . . . . . . . . . . . . . . . . . . . . . . . . . . . . . . . . . . . Trap Hack Attempts . | . . . . . . . . . . . . . . . . . . . . . . . . . . . . . . . . . . . Triggered . | . . . . . . . . . . . . . . . . . . . . . . . . . . . . . . . . . . . Disarmed . | . . . . . . . . . . . . . . . . . . . . . . . . . . . . . . . . . . . Reprogrammed . | . . . . . . . . . . . . . . . . . . . . . . . . . . . . . . . . . . . Reused . | . . . . . . . . . . . . . . . . . . . . . . . . . . . . . . . . . . . Traps Extracted . | . . . . . . . . . . . . . . . . . . . . . . . . . . . . . . . . . . . Installed . | . . . . . . . . . . . . . . . . . . . . . . . . . . . . . . . . . . . Triggered 11 | . . . . . . . . . . . . . . . . . . . . . . . . 1 1 9 . . . . . . . . Machines | -11 -10 -10 -9 -9 -8 -7 -7 -7 -7 -7 -6 -6 -6 -6 -6 -5 -5 -5 -5 -4 -4 -4 -4 -4 -4 -4 -3 -3 -3 -2 -2 -2 -1 -1 ---------- Run | Yrd Mat Min Mat Min Mat Fac Was Fac Low Low Fac Ext Cet Arc Hub Fac Upp Upp Zhi Pro Fac Was Fac Upp Upp War Pro Res Qua Res Tes Sec Acc Com Machines Disabled 67 | . . . 1 . 3 . . . . . . 3 . 3 . . . . 2 1 . . 6 . . 1 . 1 8 1 21 7 4 5 Max in Single Turn 4 | . . . 1 . 1 . . . . . . 1 . 1 . . . . 1 1 . . 3 . . 1 . 1 2 1 4 3 1 2 Garrison Access 10 | . . . . . . 1 . 3 . . 1 . . . . . . . . . 1 . 1 . . . . 1 . 1 1 . . . Network Hub 1 | . . . . . . . . . . . . . . . 1 . . . . . . . . . . . . . . . . . . . Energy Cycler 1 | . . . . . . . . . . . . . . . . . . . . . . . . . . . . . . . . . 1 . Machines Repaired . | . . . . . . . . . . . . . . . . . . . . . . . . . . . . . . . . . . . Machines Dismantled . | . . . . . . . . . . . . . . . . . . . . . . . . . . . . . . . . . . . Machines Sabotaged 1 | . . . . . . . . . . . . . . . 1 . . . . . . . . . . . . . . . . . . . Overloaded Fab Kills . | . . . . . . . . . . . . . . . . . . . . . . . . . . . . . . . . . . . Hacking | -11 -10 -10 -9 -9 -8 -7 -7 -7 -7 -7 -6 -6 -6 -6 -6 -5 -5 -5 -5 -4 -4 -4 -4 -4 -4 -4 -3 -3 -3 -2 -2 -2 -1 -1 --------- Run | Yrd Mat Min Mat Min Mat Fac Was Fac Low Low Fac Ext Cet Arc Hub Fac Upp Upp Zhi Pro Fac Was Fac Upp Upp War Pro Res Qua Res Tes Sec Acc Com Machines Accessed 174 | . 10 . 11 . 8 7 . 18 1 . 10 9 . 1 6 14 . . 9 1 15 . 13 . . 3 . 6 14 2 8 3 2 3 Terminals 90 | . 7 . 8 . 5 3 . 5 . . 6 8 . . 6 6 . . . 1 7 . 5 . . . . 3 10 . 3 3 2 2 Fabricators 17 | . . . . . . 2 . 5 . . 1 . . . . 2 . . . . 3 . 2 . . . . . . 1 1 . . . Repair Stations 17 | . 1 . 1 . 1 . . . . . . 1 . . . 3 . . . . 2 . 3 . . . . . 2 . 2 . . 1 Recycling Units 15 | . 2 . 1 . 2 1 . 2 . . 1 . . . . 2 . . . . 1 . 2 . . . . 1 . . . . . . Scanalyzers 10 | . . . 1 . . . . 3 . . 1 . . . . . . . . . 1 . . . . . . 1 2 . 1 . . . Garrison Access 11 | . . . . . . 1 . 3 . . 1 . . . . 1 . . . . 1 . 1 . . . . 1 . 1 1 . . . Total Hacks 587 | . 21 . 34 . 21 17 . 37 1 . 23 27 . 25 18 44 . . 48 1 72 . 52 . . 6 . 23 48 8 43 6 6 6 Successful 384 | . 10 . 15 . 6 11 . 21 1 . 10 15 . 25 8 32 . . 48 1 44 . 37 . . 6 . 17 36 8 24 3 3 3 Failed 197 | . 11 . 19 . 15 6 . 16 . . 13 12 . . 10 11 . . . . 27 . 14 . . . . 5 11 . 18 3 3 3 Catastrophic 35 | . 4 . 1 . 4 1 . 2 . . 2 2 . . 2 1 . . . . 8 . . . . . . . 2 . 4 1 1 . Database Lockouts 6 | . . . . . . . . . . . . . . . . 1 . . . . 1 . 1 . . . . 1 1 . 1 . . . Manual 258 | . 12 . 21 . 14 7 . 18 . . 16 13 1 . 8 21 . . . 1 45 . 23 . . . . 8 22 1 24 1 2 . Terminals 318 | . 15 . 25 . 14 9 . 14 . . 16 25 . . 18 19 . . . 1 39 . 28 . . . . 15 40 . 24 6 6 4 Fabricators 66 | . . . . . . 6 . 10 . . 3 . . . . 7 . . . . 22 . 5 . . . . . . 7 6 . . . Repair Stations 63 | . 3 . 3 . 3 . . . . . . 2 . . . 13 . . . . 8 . 16 . . . . . 5 . 8 . . 2 Recycling Units 21 | . 3 . 2 . 4 1 . 2 . . 2 . . . . 2 . . . . 1 . 2 . . . . 2 . . . . . . Scanalyzers 26 | . . . 4 . . . . 8 . . 1 . . . . . . . . . 1 . . . . . . 5 3 . 4 . . . Garrison Access 13 | . . . . . . 1 . 3 . . 1 . . . . 3 . . . . 1 . 1 . . . . 1 . 1 1 . . . Terminal Hacks 204 | . 4 . 3 . 2 4 . 2 1 . 5 10 . 25 6 8 . . 48 1 17 . 13 . . 6 . 8 24 . 8 3 3 3 Record 70 | . . . . . . . . . . . . . . 25 . . . . 36 . . . . . . 4 . . 4 . . . . 1 Part Schematic 22 | . 1 . . . . . . 1 . . . . . . . 3 . . 4 . 6 . 1 . . . . 1 3 . 2 . . . Robot Analysis 10 | . . . 1 . . . . . . . 1 1 . . . . . . 4 . . . . . . . . 1 2 . . . . . Prototype ID Bank 6 | . . . . . . . . . . . . . . . . . . . 4 . . . . . . . . . 2 . . . . . Open Door 7 | . . . . . . . . . 1 . . 3 . . . . . . . 1 . . . . . 2 . . . . . . . . Level Access Points 6 | . . . . . . . . . . . . . . . 1 1 . . . . 1 . 1 . . . . . 1 . . 1 . . Branch Access Points 8 | . . . . . . 1 . . . . 1 . . . . 1 . . . . 1 . 1 . . . . 1 1 . . . 1 . Emergency Access Points 2 | . . . . . . . . . . . . . . . . . . . . . . . . . . . . . . . . . 1 1 Machine Index 5 | . . . . . . . . . . . . . . . . 1 . . . . 1 . 1 . . . . 1 1 . . . . . Terminal Index 8 | . 1 . . . . 1 . 1 . . 1 1 . . 1 1 . . . . . . . . . . . . . . . 1 . . Fabricator Index 1 | . . . . . . . . . . . . . . . . . . . . . . . . . . . . . . . 1 . . . Alert Level 3 | . . . . . . . . . . . . . . . . . . . . . 1 . . . . . . 1 1 . . . . . Unreport Threat 24 | . . . 1 . 2 . . . . . 2 2 . . 1 . . . . . 2 . 4 . . . . 2 2 . 5 1 . . Locate Traps 16 | . 1 . 1 . . 1 . . . . . 3 . . 1 1 . . . . 4 . 2 . . . . 1 1 . . . . . Recall Extermination 4 | . . . . . . 1 . . . . . . . . . . . . . . 1 . 1 . . . . . 1 . . . . . Recall Reinforcements 1 | . . . . . . . . . . . . . . . . . . . . . . . 1 . . . . . . . . . . . Registered Components 2 | . 1 . . . . . . . . . . . . . . . . . . . . . 1 . . . . . . . . . . . Registered Prototypes 1 | . . . . . . . . . . . . . . . . . . . . . . . . . . . . . 1 . . . . . Zone Layout 7 | . . . . . . . . . . . . . . . 2 . . . . . . . . . . . . . 4 . . . 1 . Disengage Seal 1 | . . . . . . . . . . . . . . . . . . . . . . . . . . . . . . . . . . 1 Fabricator Hacks 36 | . . . . . . 2 . 4 . . 1 . . . . 4 . . . . 12 . 3 . . . . . . 6 4 . . . Network Status 4 | . . . . . . 1 . 1 . . 1 . . . . . . . . . 1 . . . . . . . . . . . . . Load Schematic 20 | . . . . . . 1 . 3 . . . . . . . 2 . . . . 7 . 2 . . . . . . 3 2 . . . Build 12 | . . . . . . . . . . . . . . . . 2 . . . . 4 . 1 . . . . . . 3 2 . . . Repair Station Hacks 50 | . 2 . 2 . 2 . . . . . . 2 . . . 12 . . . . 5 . 14 . . . . . 5 . 6 . . . Scan Component 27 | . 1 . 1 . 1 . . . . . . 1 . . . 6 . . . . 3 . 7 . . . . . 3 . 4 . . . Repair 23 | . 1 . 1 . 1 . . . . . . 1 . . . 6 . . . . 2 . 7 . . . . . 2 . 2 . . . Recycling Unit Hacks 12 | . 1 . 1 . . 1 . 2 . . 1 . . . . 2 . . . . 1 . 2 . . . . 1 . . . . . . Retrieve Components 12 | . 1 . 1 . . 1 . 2 . . 1 . . . . 2 . . . . 1 . 2 . . . . 1 . . . . . . Scanalyzer 19 | . . . 4 . . . . 3 . . . . . . . . . . . . 1 . . . . . . 5 3 . 3 . . . Insert Component 11 | . . . 1 . . . . 2 . . . . . . . . . . . . 1 . . . . . . 2 3 . 2 . . . Analyze 8 | . . . 3 . . . . 1 . . . . . . . . . . . . . . . . . . . 3 . . 1 . . . Garrison Access Hacks 10 | . . . . . . 1 . 3 . . 1 . . . . . . . . . 1 . 1 . . . . 1 . 1 1 . . . Seal Access 10 | . . . . . . 1 . 3 . . 1 . . . . . . . . . 1 . 1 . . . . 1 . 1 1 . . . Unauthorized Hacks 53 | . 3 . 5 . 2 3 . 7 . . 2 3 . . 2 6 . . . . 7 . 4 . . . . 2 4 1 2 . . . Terminals 36 | . 3 . 5 . 2 2 . 2 . . 1 3 . . 2 4 . . . . 3 . 2 . . . . 2 4 . 1 . . . Track 3 | . . . . . . . . . . . . 1 . . . . . . . . . . . . . . . . 2 . . . . . Assimilate 3 | . . . 1 . . . . 1 . . . . . . . . . . . . . . . . . . . 1 . . . . . . Botnet 21 | . 2 . 2 . 1 2 . 1 . . 1 1 . . 1 3 . . . . 2 . 1 . . . . 1 2 . 1 . . . Disrupt 2 | . . . 1 . . . . . . . . 1 . . . . . . . . . . . . . . . . . . . . . . Operators 6 | . 1 . 1 . 1 . . . . . . . . . . 1 . . . . 1 . 1 . . . . . . . . . . . Sabotage 1 | . . . . . . . . . . . . . . . 1 . . . . . . . . . . . . . . . . . . . Fabricators 17 | . . . . . . 1 . 5 . . 1 . . . . 2 . . . . 4 . 2 . . . . . . 1 1 . . . Prioritize 5 | . . . . . . . . . . . . . . . . 1 . . . . 1 . 1 . . . . . . 1 1 . . . Fabnet 1 | . . . . . . . . . . . 1 . . . . . . . . . . . . . . . . . . . . . . . Recompile 11 | . . . . . . 1 . 5 . . . . . . . 1 . . . . 3 . 1 . . . . . . . . . . . Repair Stations . | . . . . . . . . . . . . . . . . . . . . . . . . . . . . . . . . . . . Recycling Units . | . . . . . . . . . . . . . . . . . . . . . . . . . . . . . . . . . . . Scanalyzers . | . . . . . . . . . . . . . . . . . . . . . . . . . . . . . . . . . . . Garrison Access . | . . . . . . . . . . . . . . . . . . . . . . . . . . . . . . . . . . . Data Cores Recovered . | . . . . . . . . . . . . . . . . . . . . . . . . . . . . . . . . . . . Used . | . . . . . . . . . . . . . . . . . . . . . . . . . . . . . . . . . . . Hacking Detections 116 | . 9 . 10 . 8 5 . 11 . . 8 6 . . 6 11 . . . . 9 . 8 . . . . 4 9 . 5 3 2 2 Full Trace Events 7 | . . . . . 3 1 . . . . . 1 . . . 1 . . . . . . . . . . . . . . 1 . . . Feedback Events 1 | . . . . . . 1 . . . . . . . . . . . . . . . . . . . . . . . . . . . . Hackware Fried 1 | . . . . . . 1 . . . . . . . . . . . . . . . . . . . . . . . . . . . . Feedback Blocked . | . . . . . . . . . . . . . . . . . . . . . . . . . . . . . . . . . . . Robot Schematics Acquired 1 | . . . . . . . . . . . . . . . . . . . . . . . . . . . . . . . . 1 . . Robots Built . | . . . . . . . . . . . . . . . . . . . . . . . . . . . . . . . . . . . Authchips . | . . . . . . . . . . . . . . . . . . . . . . . . . . . . . . . . . . . Time . | . . . . . . . . . . . . . . . . . . . . . . . . . . . . . . . . . . . Total Robot Build Rating . | . . . . . . . . . . . . . . . . . . . . . . . . . . . . . . . . . . . Part Schematics Acquired 26 | . 1 . 1 . . . . 2 . . . . . . . 3 . . 4 . 5 . 1 . . . . 2 3 . 3 1 . . Parts Built 15 | . . . . . . . . . . . . . . . . 2 . . . . 4 . 2 . . . . . . 4 3 . . . Authchips 10 | . . . . . . . . . . . . . . . . . . . . . 4 . 1 . . . . . . 3 2 . . . Time 707 | . . . . . . . . . . . . . . . . 123 . . . . 274 . 117 . . . . . . 124 69 . . . Total Part Build Rating 107 | . . . . . . . . . . . . . . . . 16 . . . . 27 . 14 . . . . . . 31 19 . . . Parts Repaired 22 | . 1 . 1 . 1 . . . . . . 1 . . . 6 . . . . 2 . 7 . . . . . 2 . 1 . . . Time 747 | . 26 . 13 . 19 . . . . . . 13 . . . 135 . . . . 79 . 293 . . . . . 73 . 96 . . . Parts Recycled . | . . . . . . . . . . . . . . . . . . . . . . . . . . . . . . . . . . . Recycled Matter . | . . . . . . . . . . . . . . . . . . . . . . . . . . . . . . . . . . . Retrieved Matter . | . . . . . . . . . . . . . . . . . . . . . . . . . . . . . . . . . . . Retrieved Components 36 | . 9 . 3 . . 2 . 4 . . 3 . . . . 11 . . . . 1 . 2 . . . . 1 . . . . . . Parts Scanalyzed 4 | . . . 1 . . . . 1 . . . . . . . . . . . . . . . . . . . 1 . . 1 . . . Part Schematics Acquired 4 | . . . 1 . . . . 1 . . . . . . . . . . . . . . . . . . . 1 . . 1 . . . Parts Damaged . | . . . . . . . . . . . . . . . . . . . . . . . . . . . . . . . . . . . Bothacking | -11 -10 -10 -9 -9 -8 -7 -7 -7 -7 -7 -6 -6 -6 -6 -6 -5 -5 -5 -5 -4 -4 -4 -4 -4 -4 -4 -3 -3 -3 -2 -2 -2 -1 -1 ------------ Run | Yrd Mat Min Mat Min Mat Fac Was Fac Low Low Fac Ext Cet Arc Hub Fac Upp Upp Zhi Pro Fac Was Fac Upp Upp War Pro Res Qua Res Tes Sec Acc Com Used RIF Installer . | . . . . . . . . . . . . . . . . . . . . . . . . . . . . . . . . . . . Robots Hacked 1 | . . . . . . . . . . . . . . . . . . . . . . . . . . 1 . . . . . . . . Non-combat . | . . . . . . . . . . . . . . . . . . . . . . . . . . . . . . . . . . . Combat 1 | . . . . . . . . . . . . . . . . . . . . . . . . . . 1 . . . . . . . . Robot Hacks Applied . | . . . . . . . . . . . . . . . . . . . . . . . . . . . . . . . . . . . Relay Couplers Released . | . . . . . . . . . . . . . . . . . . . . . . . . . . . . . . . . . . . Fabnet Peak Effective % 3 | . . . . . . . . . . . . . . . . 3 3 3 3 1 1 1 1 1 1 1 . . . . . . . . Autooverrided 1 | . . . . . . . . . . . . . . . . . . . . . . . . . . 1 . . . . . . . . Robots Rewired 20 | . . . . . . . . . . . 1 13 . . . . . . . . . . . . . 5 . . . . 1 . . . Allies Hacked . | . . . . . . . . . . . . . . . . . . . . . . . . . . . . . . . . . . . Hacks Repelled . | . . . . . . . . . . . . . . . . . . . . . . . . . . . . . . . . . . . Allies | -11 -10 -10 -9 -9 -8 -7 -7 -7 -7 -7 -6 -6 -6 -6 -6 -5 -5 -5 -5 -4 -4 -4 -4 -4 -4 -4 -3 -3 -3 -2 -2 -2 -1 -1 -------- Run | Yrd Mat Min Mat Min Mat Fac Was Fac Low Low Fac Ext Cet Arc Hub Fac Upp Upp Zhi Pro Fac Was Fac Upp Upp War Pro Res Qua Res Tes Sec Acc Com Total Allies 82 | . . . 1 3 . . 18 1 . . 1 17 5 . . . . . . . . 20 . . . 6 . 1 . . 1 . . 8 Largest Group 20 | . . . 1 3 . . 18 1 . . 1 5 6 6 . . . . . . . 20 . . . 5 . 1 . . 1 . . 8 Highest-Rated Group 775 | . . . 10 40 . . 444 10 . . 32 260 639 639 . . . . . . . 775 . . . 291 . 26 . . 124 . . 116 Highest-Rated Ally 159 | . . . 10 16 . . 35 10 . . 32 159 159 159 . . . . . . . 50 . . . 65 . 26 . . 124 . . 15 Total Orders 2 | . . . . 2 . . . . . . . . . . . . . . . . . . . . . . . . . . . . . . ROAM 1 | . . . . 1 . . . . . . . . . . . . . . . . . . . . . . . . . . . . . . FOLLOW 1 | . . . . 1 . . . . . . . . . . . . . . . . . . . . . . . . . . . . . . Ally Attacks 348 | . . . . . . . 85 . . . 2 101 5 31 . . . . . . . . . . . 32 . . . . 13 . . 79 Total Damage 10294 | . . . . . . . 3243 . . . 62 1971 150 1184 . . . . . . . . . . . 1601 . . . . 838 . . 1245 Kills 33 | . . . . . . . 8 . . . . 10 1 8 . . . . . . . . . . . 5 . . . . 1 . . . Allies Corrupted 11 | . . . . . . . 8 . . . . 1 . . . . . . . . . . . . . 2 . . . . . . . . Allies Melted 1 | . . . . . . . . . . . . . . . . . . . . . . . . . . . . . . 1 . . . . Intel | -11 -10 -10 -9 -9 -8 -7 -7 -7 -7 -7 -6 -6 -6 -6 -6 -5 -5 -5 -5 -4 -4 -4 -4 -4 -4 -4 -3 -3 -3 -2 -2 -2 -1 -1 ------- Run | Yrd Mat Min Mat Min Mat Fac Was Fac Low Low Fac Ext Cet Arc Hub Fac Upp Upp Zhi Pro Fac Was Fac Upp Upp War Pro Res Qua Res Tes Sec Acc Com Robot Analysis Total 10 | . . . 1 . . . . . . . 1 1 . . . . . . 4 . . . . . . . . 1 2 . . . . . Derelict Logs Recovered 10 | . . 2 . 2 . . . . 1 2 . . . . . . 1 . . 2 . . . . . . . . . . . . . . Drone Launches . | . . . . . . . . . . . . . . . . . . . . . . . . . . . . . . . . . . . Drone Recoveries . | . . . . . . . . . . . . . . . . . . . . . . . . . . . . . . . . . . . Exploration | -11 -10 -10 -9 -9 -8 -7 -7 -7 -7 -7 -6 -6 -6 -6 -6 -5 -5 -5 -5 -4 -4 -4 -4 -4 -4 -4 -3 -3 -3 -2 -2 -2 -1 -1 ------------- Run | Yrd Mat Min Mat Min Mat Fac Was Fac Low Low Fac Ext Cet Arc Hub Fac Upp Upp Zhi Pro Fac Was Fac Upp Upp War Pro Res Qua Res Tes Sec Acc Com Turns Passed 28029 | 115 1341 949 2708 1459 2819 651 440 1159 508 253 358 1211 294 65 152 957 247 305 186 773 974 175 1128 179 238 879 232 674 887 1561 1576 665 1203 708 Spaces Moved 26424 | 56 909 617 1426 677 1441 1089 503 1926 1135 596 793 1079 95 58 179 1278 393 382 305 901 1476 302 1596 384 466 1166 342 865 827 1187 793 358 568 256 Core 3 | 3 . . . . . . . . . . . . . . . . . . . . . . . . . . . . . . . . . . Treads 2381 | . . . . . . . . . . . . . . . . . . . . . . . . . . . . . . 406 793 358 568 256 Legs . | . . . . . . . . . . . . . . . . . . . . . . . . . . . . . . . . . . . Wheels 5123 | 53 909 617 1426 677 1441 . . . . . . . . . . . . . . . . . . . . . . . . . . . . . Hover 18917 | . . . . . . 1089 503 1926 1135 596 793 1079 95 58 179 1278 393 382 305 901 1476 302 1596 384 466 1166 342 865 827 781 . . . . Flight . | . . . . . . . . . . . . . . . . . . . . . . . . . . . . . . . . . . . Fastest Speed 34 | 50 80 140 130 145 105 42 42 40 40 40 36 36 100 38 38 40 48 48 48 48 40 40 34 37 37 37 41 41 59 59 155 155 155 160 Average Speed 74 | 89 110 140 143 150 116 42 42 41 40 40 36 74 101 71 38 49 48 48 48 48 45 51 37 37 37 48 43 56 80 106 159 155 156 160 Slowest Speed 250 | 150 140 140 155 155 155 42 42 102 40 40 40 105 102 102 105 108 48 48 48 100 48 110 41 37 37 111 111 142 127 250 160 155 160 160 Overloaded Moves . | . . . . . . . . . . . . . . . . . . . . . . . . . . . . . . . . . . . Propulsion Burnouts . | . . . . . . . . . . . . . . . . . . . . . . . . . . . . . . . . . . . Robots Hopped . | . . . . . . . . . . . . . . . . . . . . . . . . . . . . . . . . . . . Cave-ins Triggered . | . . . . . . . . . . . . . . . . . . . . . . . . . . . . . . . . . . . Exploration Rate (%) 55 | 4 97 99 87 96 74 24 97 39 94 73 20 87 47 76 16 40 51 52 62 60 30 80 35 58 43 87 54 22 85 39 74 22 19 16 Regions Visited 34 Branch Regions 20 Pre-discovered Areas 5 | . . . . 2 . . . . . . . . . . . . . . 3 . . . . . . . . . . . . . . . Known Exits Taken 25 | . . . . . 1 . . 1 1 1 1 1 1 1 1 1 1 1 1 1 . . 1 1 1 1 1 1 1 1 1 1 1 . Unknown Exits Taken 5 | 1 1 1 1 1 . . . . . . . . . . . . . . . . . . . . . . . . . . . . . . Scrap Searched 17 | . . 1 . 1 . . . . 5 1 . . . . . . . 2 . 2 . . . 1 3 . 1 . . . . . . . Spaces Dug 270 | . . . . . 3 13 . 31 16 1 8 . . . 5 5 3 3 . 7 24 . 78 7 2 1 6 14 27 7 3 4 2 . Terrain Destroyed 1518 | . 9 . 124 40 73 13 . 46 45 3 8 94 . . 5 95 8 6 . 10 35 56 92 14 122 3 9 60 78 32 127 36 113 162 Melee 69 | . . . . . 3 13 . 31 5 1 8 . . . 5 3 . . . . . . . . . . . . . . . . . . Projectile 625 | . . . 2 . . . . . . . . . . . . 5 8 6 . 10 35 . 41 14 8 3 9 20 64 32 113 26 67 162 AOE 824 | . 9 . 122 40 70 . . 15 40 2 . 94 . . . 87 . . . . . 56 51 . 114 . . 40 14 . 14 10 46 . Terrain Rammed . | . . . . . . . . . . . . . . . . . . . . . . . . . . . . . . . . . . . Walls Destroyed . | . . . . . . . . . . . . . . . . . . . . . . . . . . . . . . . . . . . Machines Disabled . | . . . . . . . . . . . . . . . . . . . . . . . . . . . . . . . . . . . Actions | -11 -10 -10 -9 -9 -8 -7 -7 -7 -7 -7 -6 -6 -6 -6 -6 -5 -5 -5 -5 -4 -4 -4 -4 -4 -4 -4 -3 -3 -3 -2 -2 -2 -1 -1 --------- Run | Yrd Mat Min Mat Min Mat Fac Was Fac Low Low Fac Ext Cet Arc Hub Fac Upp Upp Zhi Pro Fac Was Fac Upp Upp War Pro Res Qua Res Tes Sec Acc Com Total 33237 | 98 1139 677 1901 1099 2309 1249 691 2236 1169 607 847 1417 285 73 248 1575 438 497 332 1189 1734 316 2057 404 510 1479 406 1001 1027 1466 999 442 827 493 Wait 4560 | 20 127 41 291 381 645 105 155 243 20 9 18 202 183 . 59 193 34 110 . 244 174 . 350 4 21 257 45 66 127 191 61 21 71 92 Move 26392 | 55 908 616 1425 676 1440 1089 502 1925 1134 595 792 1078 94 57 178 1277 392 381 304 900 1476 301 1595 383 465 1165 341 864 826 1186 792 357 567 256 Hop . | . . . . . . . . . . . . . . . . . . . . . . . . . . . . . . . . . . . Pick Up 194 | 6 20 2 12 6 13 5 2 8 . . 5 7 . 2 . 15 . . 4 1 14 2 10 . . 4 . 1 8 17 8 7 10 5 Fast Attach 105 | 7 1 . 7 . 7 . . . . 1 5 7 1 2 . 13 . . 2 1 4 . 5 . . 5 . 7 4 6 8 4 6 2 Attach 139 | . . . 3 . 5 8 . 3 1 . 2 9 1 . 2 6 . . 1 3 5 1 3 . . 4 . 1 10 7 17 8 18 21 Detach 77 | . . . . . 1 1 . 4 . . 1 7 . . 1 8 . . . 1 1 1 1 . . 4 . . 10 3 13 5 8 7 Swap 293 | 1 17 4 38 10 24 6 . 7 2 1 4 5 . 1 . 14 . . 3 5 9 4 8 . 8 12 5 12 4 19 24 6 26 14 Drop 225 | . 9 1 22 11 18 12 2 11 . . 8 7 . 1 . 13 . . 5 2 10 2 10 . . 13 . 8 11 19 8 7 13 2 Fire 1017 | 9 57 13 103 15 147 . 10 3 6 . . 28 6 6 . 12 12 6 12 32 41 5 62 16 16 6 15 42 27 18 65 26 107 94 Melee 138 | . . . . . 9 20 20 32 6 1 10 21 . . 8 11 . . . . . . . . . . . . . . . . . . Ram . | . . . . . . . . . . . . . . . . . . . . . . . . . . . . . . . . . . . Kick . | . . . . . . . . . . . . . . . . . . . . . . . . . . . . . . . . . . . Crush 1 | . . . . . . . . . . . . . . . . . . . . . . . . . . . . . . . . . 1 . Escape Stasis 34 | . . . . . . . . . . . . 6 . . . 13 . . . . . . 13 . . . . . . . 1 1 . . Rewire 62 | . . . . . . 3 . . . . 2 40 . 4 . . . . 1 . . . . 1 . 9 . . . . 2 . . . Trap . | . . . . . . . . . . . . . . . . . . . . . . . . . . . . . . . . . . . Miscellaneous . | . . . . . . . . . . . . . . . . . . . . . . . . . . . . . . . . . . . Route ------- -11/Scrapyard -10/Materials (discovered 4 exits: *Mat x3 / [*Min]) -10/Mines (discovered 2 exits: *Mat x2) -9/Materials (discovered 4 exits: *Mat x2 / [*Min] / [*Sto]) -9/Mines (discovered 3 exits: *Mat x2 / *Zio) -8/Materials (discovered 2 exits: *Fac x2) -7/Factory (discovered 2 exits: *Low x2) -7/Waste -7/Factory (discovered 2 exits: *Fac / *Low) -7/Lower Caves -7/Lower Caves (discovered 2 exits: *Fac / *Zio) -6/Factory (discovered 5 exits: Fac / Low x2 / *Ext x2) -6/Extension (discovered 2 exits: *Fac / *Cet) -6/Cetus -6/Archives (discovered 2 exits: *Hub x2) -6/Hub_04(d) (discovered 4 exits: *Fac x4) -5/Factory (discovered 6 exits: Fac x4 / *Upp x2) -5/Upper Caves -5/Upper Caves (discovered 2 exits: *Fac / *Zhi) -5/Zhirov -4/Proximity Caves -4/Factory (discovered 7 exits: Res x4 / Upp x2 / Arm) -4/Waste -4/Factory (discovered 7 exits: Res x4 / *Upp x2 / Arm) -4/Upper Caves -4/Upper Caves -4/Warlord -3/Proximity Caves -3/Research (discovered 2 exits: *Qua x2) -3/Quarantine -2/Research (discovered 2 exits: *Acc / *Tes) -2/Testing -2/Section 7 -1/Access -1/Command (discovered 2 exits: [Sur x2]) History --------- Turn | Location | Event 23 | -11/Scrapyard | Discovered new exit (range 16) 116 | -11/Scrapyard | Entered Materials 311 | -10/Materials | Build established: Mutant 381 | -10/Materials | Discovered new exit (range 15) 440 | -10/Materials | Repaired Assault Rifle 540 | -10/Materials | Discovered new exit (range 7) 1079 | -10/Materials | Discovered new exit (range 13) 1355 | -10/Materials | Discovered new exit (range 15) 1457 | -10/Materials | Entered Mines 1743 | -10/Mines | Discovered new exit (range 7) 1845 | -10/Mines | Learned Materials non-interactive machine intel 2016 | -10/Mines | Learned Materials interactive machine intel 2019 | -10/Mines | Discovered new exit (range 9) 2406 | -10/Mines | Entered Materials 2406 | -9/Materials | Evolved 2 slots: Utility x2 2407 | -9/Materials | Loaded intel: 38 non-interactive machine locations 2408 | -9/Materials | Loaded intel: 18 interactive machine locations 2572 | -9/Materials | Discovered new exit (range 14) 2993 | -9/Materials | Discovered new exit (range 13) 3333 | -9/Materials | Discovered new exit (range 5) 3495 | -9/Materials | Repaired Hcp. Storage Unit 3733 | -9/Materials | Discovered new exit (range 9) 4806 | -9/Materials | First assault squad dispatched 4889 | -9/Materials | Core integrity fell below 50% 5114 | -9/Materials | Entered Mines 5146 | -9/Mines | Learned Materials garrison access intel 5165 | -9/Mines | Assembled infested the area 5597 | -9/Mines | Received a Rocket Launcher from a helpful Derelict 5621 | -9/Mines | Deemed a non-threat by the Exiles lab entrance 5702 | -9/Mines | Learned location of Storage (-9) 5724 | -9/Mines | Assisted by bots powering up and referring to "LRC-V3" 5726 | -9/Mines | Found DCF Scrap (14 items) 5842 | -9/Mines | Discovered new exit (range 16) 5844 | -9/Mines | A Derelict revealed a hidden shortcut to a safe place 6397 | -9/Mines | Discovered new exit (range 3) 6573 | -9/Mines | Entered Materials 6573 | -8/Materials | Evolved 2 slots: Propulsion x2 6574 | -8/Materials | Loaded intel: 1 garrison access location 6613 | -8/Materials | Garrison activated, responded to threat 6693 | -8/Materials | Destroyed 11 combat bots 6875 | -8/Materials | Build established: Scavenger-Mutant 7544 | -8/Materials | Build established: Mutant 7635 | -8/Materials | Repaired Hrd. Medium Armor Plating 8082 | -8/Materials | Discovered new exit (range 4) 8550 | -8/Materials | Discovered new exit (range 16) 8889 | -8/Materials | Build established: Skirmisher 9391 | -8/Materials | Identified exit to Factory 9392 | -8/Materials | Entered Factory 9392 | -7/Factory | Evolved 2 slots: Propulsion x1, Utility x1 9474 | -7/Factory | Hacking Suite fried by hacking feedback 9704 | -7/Factory | Build established: Hacker-Mutant 9843 | -7/Factory | Identified exit to Lower Caves 10043 | -7/Factory | Sucked down chute 10043 | -7/Factory | Entered Waste 10182 | -7/Waste | Spotted C-40 Crusher 10230 | -7/Waste | Spotted C-40 Crusher 10237 | -7/Waste | Spotted C-40 Crusher 10244 | -7/Waste | Warlord forces began an assault 10263 | -7/Waste | Spotted C-40 Crusher 10273 | -7/Waste | Allies destroyed C-40 Crusher 10278 | -7/Waste | Allies destroyed C-40 Crusher 10309 | -7/Waste | Spotted C-40 Crusher 10314 | -7/Waste | Allies destroyed C-40 Crusher 10318 | -7/Waste | Spotted C-40 Crusher 10324 | -7/Waste | Allies destroyed C-40 Crusher 10356 | -7/Waste | Discovered new exit (range 11) 10482 | -7/Waste | Identified exit to Factory 10483 | -7/Waste | Entered Factory 10499 | -7/Factory | Murdered 15 allies 10554 | -7/Factory | Discovered exit to Lower Caves (range 14) 10923 | -7/Factory | Discovered new exit (range 11) 10931 | -7/Factory | Garrison activated, responded to threat 11642 | -7/Factory | Entered Lower Caves 11809 | -7/Lower Caves | Spotted B-75 Beast 11849 | -7/Lower Caves | Learned 12 Factory zone layouts 11862 | -7/Lower Caves | Encountered a Warlord checkpoint 11931 | -7/Lower Caves | Attracted the attention of an 0b10 outpost 12052 | -7/Lower Caves | Discovered new exit (range 14) 12057 | -7/Lower Caves | Identified exit to Lower Caves 12150 | -7/Lower Caves | Entered another Lower Caves area 12182 | -7/Lower Caves | Discovered new exit (range 7) 12184 | -7/Lower Caves | Learned 4 Factory zone layouts 12187 | -7/Lower Caves | Identified exit to Factory 12267 | -7/Lower Caves | Identified exit to Zion 12318 | -7/Lower Caves | Found Alien Artifact 12318 | -7/Lower Caves | Identified Core Expander 12318 | -7/Lower Caves | Installed Core Expander, added new Power slot 12403 | -7/Lower Caves | Entered Factory 12403 | -6/Factory | Evolved 2 slots: Propulsion x1, Utility x1 12404 | -6/Factory | Identified exit to Factory 12404 | -6/Factory | Identified exit to Lower Caves 12537 | -6/Factory | Found Prototype Launcher 12537 | -6/Factory | Identified Rocket Array 12540 | -6/Factory | Found Rocket Array 12637 | -6/Factory | Identified exit to Extension 12761 | -6/Factory | Entered Extension 12854 | -6/Extension | Lost 3 allies 13126 | -6/Extension | Rescued a captive Derelict 13146 | -6/Extension | Rescued a captive Derelict 13174 | -6/Extension | Build established: Hacker-Assassin 13433 | -6/Extension | Spotted B-75 Beast 13448 | -6/Extension | Destroyed B-75 Beast 13453 | -6/Extension | Spotted B-75 Beast 13461 | -6/Extension | Disrupted transfer network 13461 | -6/Extension | Destroyed B-75 Beast 13519 | -6/Extension | Rescued a captive Derelict 13548 | -6/Extension | Rescued A7 13643 | -6/Extension | Repaired Lrg. Storage Unit 13690 | -6/Extension | Lost 3 allies 13755 | -6/Extension | Build established: Hacker-Mutant 13898 | -6/Extension | Discovered exit to Factory (range 10) 13899 | -6/Extension | Discovered new exit (range 6) 13934 | -6/Extension | Identified exit to Cetus 13972 | -6/Extension | Entered Cetus 13972 | -6/Cetus | Accompanied by 1 ally (A7) 13977 | -6/Cetus | Acquired a Cetus Manufacturing Module code from A7 14032 | -6/Cetus | Spotted Cetus Guard 14032 | -6/Cetus | Spotted Cetus Guard 14033 | -6/Cetus | Spotted Cetus Guard 14034 | -6/Cetus | Spotted Cetus Guard 14037 | -6/Cetus | Allies destroyed Cetus Guard 14041 | -6/Cetus | Destroyed Cetus Guard 14043 | -6/Cetus | Destroyed Cetus Guard 14045 | -6/Cetus | Destroyed Cetus Guard 14087 | -6/Cetus | Started Cetus Manufacturing Module 14112 | -6/Cetus | Manufactured an Enhanced Grunt 14137 | -6/Cetus | Manufactured an Enhanced Grunt 14162 | -6/Cetus | Manufactured an Enhanced Grunt 14187 | -6/Cetus | Manufactured an Enhanced Grunt 14212 | -6/Cetus | Manufactured an Enhanced Grunt 14236 | -6/Cetus | Discovered new exit (range 16) 14250 | -6/Cetus | Identified exit to Archives 14266 | -6/Cetus | Entered Archives 14266 | -6/Archives | Accompanied by 6 allies (A7) 14279 | -6/Archives | Met Zhirov 14285 | -6/Archives | Reinforcements dispatched to Archives 14290 | -6/Archives | System corruption reached 10% 14322 | -6/Archives | Discovered new exit (range 16) 14324 | -6/Archives | Read partially decrypted archive contents 14325 | -6/Archives | Discovered new exit (range 13) 14330 | -6/Archives | Reinforcements dispatched to Archives 14330 | -6/Archives | Identified exit to Hub_04(d) 14331 | -6/Archives | Entered Hub_04(d) 14340 | -6/Hub_04(d) | Discovered exit to Factory (range 12) 14416 | -6/Hub_04(d) | Network Hub disabled 14472 | -6/Hub_04(d) | Spotted Lightning 14472 | -6/Hub_04(d) | Spotted Lightning 14472 | -6/Hub_04(d) | Spotted Lightning 14477 | -6/Hub_04(d) | System corruption reached 30% 14483 | -6/Hub_04(d) | Entered Factory 14483 | -5/Factory | Evolved 2 slots: Utility x2 14513 | -5/Factory | Lost 4 parts (3n1w) 14542 | -5/Factory | Repaired Gravmag System 14568 | -5/Factory | Repaired Imp. Gravmag System 14592 | -5/Factory | Repaired Gravmag System 14627 | -5/Factory | Repaired Fission Core 14646 | -5/Factory | Identified exit to Upper Caves 14646 | -5/Factory | Identified exit to Factory 14849 | -5/Factory | Central database locked down 14949 | -5/Factory | Found Imp. Powered Armor 15141 | -5/Factory | Fabricated Adv. Micro-nuke Launcher (x1) 15175 | -5/Factory | Fabricated Antigrav Array (x1) 15249 | -5/Factory | Repaired Antigrav System? 15348 | -5/Factory | Repaired Imp. Deuterium Engine 15440 | -5/Factory | Entered Upper Caves 15453 | -5/Upper Caves | Learned Factory stockpile data 15476 | -5/Upper Caves | Encountered a Warlord checkpoint 15546 | -5/Upper Caves | Build established: Hacker-Scout 15607 | -5/Upper Caves | Discovered new exit (range 12) 15612 | -5/Upper Caves | Identified exit to Upper Caves 15687 | -5/Upper Caves | Entered another Upper Caves area 15690 | -5/Upper Caves | Discovered exit to Factory (range 14) 15774 | -5/Upper Caves | Spotted B-75 Beast 15896 | -5/Upper Caves | Encountered a Warlord checkpoint 15990 | -5/Upper Caves | Discovered new exit (range 8) 15992 | -5/Upper Caves | Identified exit to Zhirov 15992 | -5/Upper Caves | Entered Zhirov 15993 | -5/Zhirov | Discovered new exit (range 3) 16012 | -5/Zhirov | Learned location of Quarantine (-3) 16012 | -5/Zhirov | Learned location of Testing (-2) 16012 | -5/Zhirov | Learned location of Command (-1) 16062 | -5/Zhirov | Found Alien Artifact 16069 | -5/Zhirov | Found Alien Artifact 16069 | -5/Zhirov | Identified Integrated Dissipator 16069 | -5/Zhirov | Installed Integrated Dissipator, increased core heat dissipation (+20) 16178 | -5/Zhirov | Identified exit to Proximity Caves 16178 | -5/Zhirov | Entered Proximity Caves 16237 | -4/Proximity Caves | Acquired the password to a Derelict Tinkerer's latest research 16260 | -4/Proximity Caves | Spotter reported a threat 16341 | -4/Proximity Caves | Spotter reported a threat 16559 | -4/Proximity Caves | Found Prototype Special Weapon 16559 | -4/Proximity Caves | Identified Molecular Deconstructor 16577 | -4/Proximity Caves | Learned Research terminal intel 16886 | -4/Proximity Caves | Snuck into a huge 0b10 base via the rear entrance 16935 | -4/Proximity Caves | Derelicts attacked a huge 0b10 base 16951 | -4/Proximity Caves | Entered Factory 16951 | -4/Factory | Evolved 2 slots: Utility x2 16974 | -4/Factory | Identified Transdimensional Reconstructor 16986 | -4/Factory | Found Quantum Capacitor 17174 | -4/Factory | Repaired Exp. Utility Shielding 17413 | -4/Factory | Repaired Broken Antigrav System 17472 | -4/Factory | Fabricated Exp. Hacking Suite (x1) 17524 | -4/Factory | Fabricated Exp. Hacking Suite? 17544 | -4/Factory | Fabricated Exp. Hacking Suite? 17610 | -4/Factory | Fabricated Prc. Energy Filter (x1) 17694 | -4/Factory | Identified exit to Upper Caves 17694 | -4/Factory | Identified exit to Armory 17694 | -4/Factory | Identified exit to Research 17780 | -4/Factory | Build established: Wizard-Mutant 17851 | -4/Factory | Central database locked down 17925 | -4/Factory | Manually triggered Chute Trap 17925 | -4/Factory | Sucked down chute 17925 | -4/Factory | Entered Waste 17926 | -4/Waste | Joined by Warlord forces that had cleared the area 17959 | -4/Waste | Found Exp. Hacking Suite 17974 | -4/Waste | Discovered new exit (range 16) 18000 | -4/Waste | Identified exit to Factory 18061 | -4/Waste | Murdered 4 allies 18100 | -4/Waste | Entered Factory 18192 | -4/Factory | Repaired Broken Cmb. Linear Gravjet 18226 | -4/Factory | Repaired Graphene Brace 18292 | -4/Factory | Repaired Cmb. Linear Gravjet 18338 | -4/Factory | Repaired Enh. Fission Core 18462 | -4/Factory | Fabricated Lrn. Terrain Scanner (x2) 18552 | -4/Factory | Found Gamma Bomb Array 18567 | -4/Factory | Discovered exit to Research (range 18) 18574 | -4/Factory | Repaired Antigrav Array? 18636 | -4/Factory | Repaired Gamma Bomb Array 18690 | -4/Factory | System corruption reached 10% 18731 | -4/Factory | Central database locked down 18787 | -4/Factory | Repaired Imp. Linear Gravjet? 18857 | -4/Factory | Build established: Wizard-Scout 18941 | -4/Factory | Discovered exit to Upper Caves (range 18) 19228 | -4/Factory | Entered Upper Caves 19404 | -4/Upper Caves | Discovered new exit (range 10) 19407 | -4/Upper Caves | Identified exit to Upper Caves 19407 | -4/Upper Caves | Entered another Upper Caves area 19469 | -4/Upper Caves | Found DCF Scrap (11 items) 19642 | -4/Upper Caves | Discovered new exit (range 7) 19644 | -4/Upper Caves | Identified exit to Warlord 19645 | -4/Upper Caves | Entered Warlord 19658 | -4/Warlord | System corruption cleaned by Quarantine Array 19731 | -4/Warlord | Visited the Vortex Lab 19733 | -4/Warlord | Found Prototype Energy Gun 19733 | -4/Warlord | Identified Vortex Rail 19737 | -4/Warlord | Found Vortex Rail 19752 | -4/Warlord | Warlord's base attacked by MAIN.C 19761 | -4/Warlord | Met Warlord 19779 | -4/Warlord | Found Prototype Hackware 19779 | -4/Warlord | Identified Ghost Barrier 19785 | -4/Warlord | Found Prototype Reactor 19785 | -4/Warlord | Identified Vortex Chain Reactor 19798 | -4/Warlord | Found Prototype Device 19798 | -4/Warlord | Identified Exp. Cloaking Device 19807 | -4/Warlord | Found Prototype Processor 19867 | -4/Warlord | Opened side exit 19890 | -4/Warlord | Discovered new exit (range 15) 20102 | -4/Warlord | Warlord forces counterattacked 20228 | -4/Warlord | Lost 6 allies 20335 | -4/Warlord | Lost 7 allies 20427 | -4/Warlord | Warlord base infiltrated, sounded retreat 20523 | -4/Warlord | Identified exit to Proximity Caves 20524 | -4/Warlord | Entered Proximity Caves 20529 | -3/Proximity Caves | Spotter reported a threat 20717 | -3/Proximity Caves | Discovered exit to Research (range 17) 20756 | -3/Proximity Caves | Entered Research 20756 | -3/Research | Evolved 2 slots: Utility x2 20757 | -3/Research | Loaded intel: 26 terminal locations 21006 | -3/Research | Search patrols dispatched 21066 | -3/Research | Identified Exp. Core Analyzer 21150 | -3/Research | Central database locked down 21150 | -3/Research | Identified exit to Quarantine 21430 | -3/Research | Entered Quarantine 21460 | -3/Quarantine | Found Alien Artifact 21506 | -3/Quarantine | Cryocooling Duct disabled 21521 | -3/Quarantine | Ambient heat levels rising (+20) 21521 | -3/Quarantine | Non-combat units ordered to evacuate 21667 | -3/Quarantine | Identified exit to Research 21672 | -3/Quarantine | Identified Core Reset Matrix 21739 | -3/Quarantine | Repaired Exp. Utility Shielding? 21831 | -3/Quarantine | Central database locked down 21864 | -3/Quarantine | Found Alien Energy Cannon 21864 | -3/Quarantine | Identified Core Cannon 22001 | -3/Quarantine | Found Alien Artifact 22178 | -3/Quarantine | Repaired Broken Cmb. Antigrav System 22317 | -3/Quarantine | Entered Research 22317 | -2/Research | Warlord forces began assault on 0b10 22317 | -2/Research | Evolved 2 slots: Utility x2 22361 | -2/Research | Fabricated Exp. EM Disruption Field (x1) 22381 | -2/Research | Fabricated Adv. Hardlight Generator (x2) 22418 | -2/Research | Fabricated Vortex Chain Reactor (x1) 22427 | -2/Research | Research machine network offline 22683 | -2/Research | Borebot progress halted 22843 | -2/Research | Lost 6 allies 23051 | -2/Research | Discovered new exit (range 24) 23085 | -2/Research | Identified exit to Access 23121 | -2/Research | Met up with Warlord 23190 | -2/Research | Build established: Wizard-Skirmisher 23309 | -2/Research | Found Prototype Device 23309 | -2/Research | Identified Exp. Shock Absorption System 23395 | -2/Research | Borebot progress halted 23558 | -2/Research | Found Prototype Device 23558 | -2/Research | Identified Exp. Focal Shield 23709 | -2/Research | Spotted Executioner 23711 | -2/Research | Spotted Striker 23719 | -2/Research | Destroyed Striker 23721 | -2/Research | Spotted Executioner 23722 | -2/Research | Destroyed Executioner 23726 | -2/Research | Spotted Executioner 23731 | -2/Research | Destroyed Executioner 23739 | -2/Research | Destroyed Executioner 23865 | -2/Research | Discovered new exit (range 8) 23877 | -2/Research | Identified exit to Testing 23878 | -2/Research | Entered Testing 24022 | -2/Testing | Central database locked down 24101 | -2/Testing | Found Prototype Energy Cannon 24101 | -2/Testing | Identified Disintegrator 24288 | -2/Testing | Spotted PL-S7UCNYLWFI 24299 | -2/Testing | Rewired PL-S7UCNYLWFI 24323 | -2/Testing | Build established: Hacker-Mutant 24352 | -2/Testing | Identified Subatomic Replicator 24541 | -2/Testing | Found Beam Splitter 24566 | -2/Testing | Spotted PG-S9S6RFQRBN 24587 | -2/Testing | Core integrity fell below 50% 24588 | -2/Testing | Allies destroyed PG-S9S6RFQRBN 24626 | -2/Testing | Spotted Striker 24626 | -2/Testing | Spotted Striker 24628 | -2/Testing | First assault squad dispatched 24637 | -2/Testing | Spotted Alpha 7 24647 | -2/Testing | Destroyed Striker 24647 | -2/Testing | Destroyed Striker 24680 | -2/Testing | Destroyed Alpha 7 25001 | -2/Testing | Scanned by Researcher 25047 | -2/Testing | Found Prototype Energy Gun 25047 | -2/Testing | Identified Hyp. EM Gauss Rifle 25056 | -2/Testing | Used Subatomic Replicator to replicate Core Cannon 25085 | -2/Testing | Found Prototype Device 25085 | -2/Testing | Identified Exp. Thermal Defense Suite 25152 | -2/Testing | Repaired Broken Adv. Heavy Siege Treads? 25155 | -2/Testing | Fabricated Exp. Utility Shielding? 25158 | -2/Testing | Found Prototype Ballistic Cannon 25158 | -2/Testing | Identified Omega Cannon 25203 | -2/Testing | Fabricated Adv. Coolant Injector (x2) 25341 | -2/Testing | Spotted Fortress 25448 | -2/Testing | Discovered new exit (range 5) 25452 | -2/Testing | Identified exit to Section 7 25454 | -2/Testing | Entered Section 7 25454 | -2/Section 7 | Used Core Reset Matrix 25458 | -2/Section 7 | Sensed 20 artifacts in vicinity 25496 | -2/Section 7 | Build established: Machinist-Mutant 25940 | -2/Section 7 | Found Integrated Dissipator 25940 | -2/Section 7 | Installed Integrated Dissipator, increased core heat dissipation (+20) 25983 | -2/Section 7 | Core integrity fell below 20% 26031 | -2/Section 7 | Garrison activated, responded to threat 26063 | -2/Section 7 | Spotted B-90 Cyclops 26064 | -2/Section 7 | Destroyed 8 combat bots 26119 | -2/Section 7 | Entered Access 26119 | -1/Access | Evolved 2 slots: Power x1, Utility x1 26495 | -1/Access | Energy Cycler disabled 26592 | -1/Access | Destroyed 9 combat bots 26646 | -1/Access | Identified exit to Command 26662 | -1/Access | First assault squad dispatched 26985 | -1/Access | Destroyed 13 combat bots 27322 | -1/Access | Entered Command 27468 | -1/Command | Disengaged cave seal 27468 | -1/Command | Derelicts emerged from the dark tunnel 27468 | -1/Command | Welcomed Warlord to Command 27509 | -1/Command | Spotted B-99 Colossus 27547 | -1/Command | Lost 3 parts (1p2u) 27562 | -1/Command | Lost 7 allies 27572 | -1/Command | First assault squad dispatched 27635 | -1/Command | Warlord commented on Warlord statues 27643 | -1/Command | Spotted M Guard 27644 | -1/Command | Spotted M Guard 27644 | -1/Command | Spotted Combat Programmer 27645 | -1/Command | Destroyed Combat Programmer 27646 | -1/Command | Core integrity fell below 50% 27650 | -1/Command | Spotted Combat Programmer 27656 | -1/Command | System corruption reached 10% 27659 | -1/Command | Destroyed Combat Programmer 27679 | -1/Command | All MAIN.C guards destroyed 27701 | -1/Command | Build established: Alien-Mutant 27701 | -1/Command | Lost 5 allies 27774 | -1/Command | Met MAIN.C 27776 | -1/Command | Warlord shut down involuntarily 27780 | -1/Command | Emitted hypermatrix ping 27780 | -1/Command | 0b10 Conduit disabled 27785 | -1/Command | Assembled emerged from beneath the floor 27801 | -1/Command | Destroyed MAIN.C Shell 27802 | -1/Command | MAIN.C activated Command garrisons 27838 | -1/Command | Destroyed MAIN.C 27852 | -1/Command | Lost 8 allies 27858 | -1/Command | Spotted B-99 Colossus 27861 | -1/Command | Lost 3 parts (1n1u1w) 27871 | -1/Command | Discovered new exit (range 21) 27871 | -1/Command | Discovered new exit (range 93) 27871 | -1/Command | Extracted map data and part IDs from MAIN.C's data core 27888 | -1/Command | Destroyed B-99 Colossus 27906 | -1/Command | Lost 4 parts (1p1n1u1w) 27927 | -1/Command | Core integrity fell below 20% 27991 | -1/Command | Failed to warp due to unstable space 28030 | -1/Command | Destroyed by G-73 Enforcer with Heavy Laser Last Messages --------------- 28020_ H-88 Terminator destroyed. 28021_ M-36 Artificer repairs G-73 Enforcer. 28021_ Slug penetrates H-88 Terminator. 28021_ Slug penetrates 0b10 Conduit. 28022_ System corrupted: Energy discharge (-55). 28022_ Adv. Heavy Siege Treads destroyed. 28024_ Penetrated by Slug. 28024_ Adv. Heat Sink destroyed. 28024_ Penetrated by Slug. 28025_ Ended siege mode. 28025_ Exp. EM Disruption Field destroyed. 28025_ Penetrated by Slug. 28027_ Slug penetrates H-88 Terminator. 28029_ Penetrated by Slug. 28029_ Adv. Heavy Siege Treads destroyed. 28029_ Slug penetrates Reinforced Barrier. 28029_ Destroyed Gamma Rifle. 28029_ Y-72 Warden destroyed. [Achievement: 50k Club] [Achievement: Torch] Map ----- +----------------------------------------------------+ | #????????????????????????????????????????????????? | | #????????????????????????????????????????????????? | | #????????????????????????????????????????????????? | | #????????????????????????????????????????????????? | | #????????????????????????????????????????????????? | | #????????????????????????????????????????????????? | | #????????????????????????????????????????????????? | | ##???????????????????????????????????????????????? | | #???????????????????????????????????????????????? | | #???????????????????????????????????????????????? | | #???????????????????????????????????????????????? | | #???????????????????????????????????????????????? | | #???##########??????????????????????????????????? | | #???# #??????????????????????????????????? | | #???# #??????????????????????????????????? | | #???# #??????????????????????????????????? | | #???# #??????????????????????????????????? | | ###### #??????????????????????????????????? | | + = #??????????????????????????????????? | | #### #??????????????????????????????????? | | #??# #??????????????????????????????????? | | #??# #????###########################???? | | ########+####????#?????????????????????????#???? | | ^^ #?????#?#######################?#???? | | ^^ #?????#?# ! """" ####### | | ####### #?????#?# !|@| "" #?#???? | | ####### #?????#?#%!!!!!! "" ####### | | ## ## #?????#?#%%!*|!""""" / | | ## < ## #?????#?#[%!!%[=!""" / % | | ## #?????#?#"%!!p%=""" % / | | ## #?????#?#""[[%%[ "" % ####### | | ####### #?????#?# "!%==gg"" #?#???? | | ####### #?????#?# "!%[%[h % ####### | | #""???#?# "[%% h% % % %""#?#???? | | ![ "???###" % m % " ""#?#???? | | ![ "???# % %% """"""""#?#???? | | [[ ![ ###???### % """"""""""#?#???? | | [[ #?????# "% " " " " #?#???? | | [ ########" " " " #?#???? | | % ! " " " """" " #?#???? | | T"""" ## % """ " " """" #?#???? | | """"""## %% " " " " #?#???? | | ######## #######"# """""""""" " #?#???? | | ???????## ##?????# # " """ " """"""""#?#???? | | ????????# #??????# # """ " " " #?#???? | | ????????# ###????" #######################?#???? | | ????????# T"#????"#????????????????????????#???? | | ######### ""#????"##########################???? | | "T""" ## ###???? ?????????????????????????????? | | " """ ## #????? ??????????????????????????????? | +----------------------------------------------------+ Best States ------------- Heat Dissipation 149 Coolant Potential 220 Energy Generation 131 Energy Capacity 950 Matter Stores 691 Matter Capacity 800 Sight Range 22 Robot Scan Range 19 Terrain Scan Range 24 Terrain Scan Density 210 Cloak Strength 4 Power Amplification 80 Armor Coverage 600 Resistance: KI 30 Resistance: TH 75 Resistance: EX 75 Resistance: EM 75 Core Shielding 30 Utility Shielding 90 Point Defense Rating 240 Weapon Cycling 25 Evasion (%) 58 Core Analysis 8 Recoil Reduction 6 Energy Filtering 50 Particle Charging 30 Offensive Hacking 66 Defensive Hacking 20 Authchip Count 8 Item Schematics ----------------- Gravity Flail | -2/Section 7 | Archive Robot Schematics ------------------ A-15 Conveyor | -2/Section 7 | Archive Fabricated ------------ Adv. Micro-nuke Launcher | x1 | -5/Factory | Preloaded Antigrav Array | x1 | -5/Factory Exp. Hacking Suite | x1 | -4/Factory | Authchip Exp. Hacking Suite | x1 | -4/Factory | Authchip Exp. Hacking Suite | x1 | -4/Factory | Authchip Prc. Energy Filter | x1 | -4/Factory | Authchip Lrn. Terrain Scanner | x2 | -4/Factory | Authchip Exp. EM Disruption Field | x1 | -2/Research | Authchip Adv. Hardlight Generator | x2 | -2/Research | Authchip Vortex Chain Reactor | x1 | -2/Research | Authchip Exp. Utility Shielding | x1 | -2/Testing | Authchip Adv. Coolant Injector | x2 | -2/Testing | Authchip Alien Tech Used ----------------- Core Expander Integrated Dissipator Core Cannon Subatomic Replicator Core Reset Matrix Transdimensional Reconstructor Achievements -------------- 50k Club Deconstruction Equal Opportunity Bot Torch void main() Challenges ------------ None Game ------ Seed AutogunSiegeExtrapolator Manual? 0 Play Time 06:43:11 Cumulative 296.4 hours Start 2024.12.13 @ 20:03:18 End 2024.12.15 @ 00:09:33 Sessions 7 Manual Loads 0 Difficulty Rogue Special Mode None Game No. 153 Rogue 153 Adventurer 0 Explorer 0 Win Type - Total 4 Types 4/0/0/0/0/0/0/0/0 Lore% 47 Gallery% 67 Achievement% 60 Wizard Run 0 Options --------- Layout 0 ASCII 0 Keyboard 1 Movement Vi Keybinds 0 Fullscreen 2 Font 18/SmallcapsGlow Map View 76x50 Zoom Use 0% Tactical HUD 1 Map Filters NONE Filters NONE Steam 1 RUN: 99f9a726-1531-41cd-b1db-365a3fedf3c2